Workbook

Sheet 2015 Reserve Cost Estimates (hidden)
A1: Roofing | I1: 2015 Est. Inflation Factor | J1: 2015 Material / Labor Cost Increases | K1: Total 2015 Est. Cost Increase | L1: Total 2015 Est. Cost
A2: every 20 or 30 years | B2: 2009 Budget with Quotes | C2: Total 2014 Est. Cost | I2: 0 | J2: 0.02 | K2: =SUM(I2:J2) -> 0.02
A3: 8-Plex | B3: =47400 -> 47400 | C3: 58650.39071 | L3: =(C3*(1+$K$2)) -> 59823.39853
A4: 1272 | B4: =23300 -> 23300 | C4: 28830.25535 | L4: =(C4*(1+$K$2)) -> 29406.86046
A5: 1274 | B5: =25675 -> 25675 | C5: 31768.96164 | L5: =(C5*(1+$K$2)) -> 32404.34087
A6: 1276 | B6: =(6.58*1825)*2 -> 24017 | C6: 29717.43531 | L6: =(C6*(1+$K$2)) -> 30311.78402
A9: Road Repair | B9: 2012 Actual Cost | C9: 2014 Estimate
A10: every 3 years | I10: Road Repair | L10: 2015 Estimate
B11: 2800 | C11: 3529.540918 | L11: =(C11*(1+$K$2)) -> 3600.131736
A16: Painting
A17: every 5 years | B17: 2009 Actual Costs | C17: 2014 Estimate
I19: Painting | L19: 2015 Estimate
A20: 8-Plex | B20: 1848 | C20: 2147.063688 | D20: note - there was an error in original 2013 estimate | L20: =(C20*(1+$K$2)) -> 2190.004962
A21: 1272 | B21: =2464/2 -> 1232 | C21: 1431.375792 | D21: and it was based on 2009 actual instead of 2012 est. | L21: =(C21*(1+$K$2)) -> 1460.003308
A22: 1274 | B22: =2464/2 -> 1232 | C22: 1431.375792 | L22: =(C22*(1+$K$2)) -> 1460.003308
A23: 1276 | B23: =2464/2 -> 1232 | C23: 1431.375792 | L23: =(C23*(1+$K$2)) -> 1460.003308
A26: Deck Repair
A27: decks last approx. 20 years, but only approx. 10 years left | B27: 2014 Quote - Brandt (see Notes sheet) | C27: 2014 Estimate | D27: note - a new deck repair reserve fund was
D28: considered for 2013, but not implemented until 2014
I29: Deck/Patio Replace/Repair | L29: 2015 Estimate
A30: 8-Plex | B30: ='Notes - keep!'!K12 -> 4480 | C30: 4480 | L30: =(C30*(1+$K$2)) -> 4569.6
A31: 1272 | B31: ='Notes - keep!'!K13 -> 4915 | C31: 4915 | L31: =(C31*(1+$K$2)) -> 5013.3
A32: 1274 | B32: ='Notes - keep!'!K14 -> 3340 | C32: 3340 | L32: =(C32*(1+$K$2)) -> 3406.8
A33: 1276 | B33: ='Notes - keep!'!K15 -> 4200 | C33: 4200 | L33: =(C33*(1+$K$2)) -> 4284
J42: Two charts below were copied 11/5/2011 for 2012 estimates:
A54: Two charts below copied 10/27/12 for 2013 estimates | F54: ! see below for 2014 | H54: and 2015
A56: U.S. Inflation Rate
A57: Past Trend Present Value & Future Projection
A58: YoY Change In CPI. Percent.
A81: </body>
A101: Two charts below copied 10/13/13 for 2014 estimates | J101: Two charts below copied 11/17/14 for 2015 estimates
A103: U.S. Inflation Rate | J103: U.S. Inflation Rate
A104: Past Trend Present Value & Future Projection | J104: Past Trend Present Value & Future Projection
A105: YoY Change In CPI. Percent. | J105: YoY Change In CPI. Percent

Sheet 2015 Budget & Fee Analysis (hidden)
A1: Hilary Heights Condominium Owners' Association | J1: Revised 11/2014
A2: 2015 Budget and Fee Analysis
A3: Prepared by: Deb Ryan, Mary Sands, Carol Jacobs, Jared Clemetsen, Charlie Mohr
A4: E X P E N S E S | H4: F E E A N A L Y S I S
H6: 1270 Monthly Total Per Unit | I6: 1272 Monthly Total Per Unit | J6: 1274 Monthly Total Per Unit | K6: 1276 Monthly Total Per Unit | P6: Reserve Fund Totals Per Type of Unit Thru | S6: Reserve Fund Totals for All Units Per Month Thru
A7: Roofing | B7: 30
A8: Recurrence in Years | B8: 20
A9: Address | B9: No. Units | C9: Cost | D9: Cost / Unit | E9: Cost / Unit / Year | F9: Cost / Unit / Month | L9: Check: Total Annual Contribution Per Address
A10: 1270 | B10: 8 | C10: ='2015 Reserve Cost Estimates'!L3 -> 59823.39853 | D10: =C10/B10 -> 7477.924816 | E10: =D10/$B$8 -> 373.8962408 | F10: =E10/12 -> 31.15802007 | H10: =F10 -> 31.15802007 | L10: =E10*B10 -> 2991.169926 | M10: for 8 units | S10: 2014-12-01
A11: 1272 | B11: 2 | C11: ='2015 Reserve Cost Estimates'!L4 -> 29406.86046 | D11: =C11/B11 -> 14703.43023 | E11: =D11/$B$8 -> 735.1715114 | F11: =E11/12 -> 61.26429262 | I11: =F11 -> 61.26429262 | L11: =E11*B11 -> 1470.343023 | M11: for 2 units
A12: 1274 | B12: 2 | C12: ='2015 Reserve Cost Estimates'!L5 -> 32404.34087 | D12: =C12/B12 -> 16202.17043 | E12: =D12/$B$8 -> 810.1085217 | F12: =E12/12 -> 67.50904347 | J12: =F12 -> 67.50904347 | L12: =E12*B12 -> 1620.217043 | M12: for 2 units
A13: 1276 | B13: 2 | C13: ='2015 Reserve Cost Estimates'!L6 -> 30311.78402 | D13: =C13/B13 -> 15155.89201 | E13: =D13/$B$7 -> 505.1964003 | F13: =E13/12 -> 42.09970002 | K13: =F13 -> 42.09970002 | L13: =E13*B13 -> 1010.392801 | M13: for 2 units
P15: =SUM(H10,I11,J12,K13) -> 202.0310562 | Q15: =P15/P41 -> 0.6514427918 | S15: =H10*8+I11*2+J12*2+K13*2 -> 591.0102328
A16: Road Repair
A17: Recurrence in Years | B17: 3
A18: Address | B18: No. Units | C18: Cost | D18: Cost / Unit | E18: Cost / Unit / Year | F18: Cost / Unit / Month
A19: All Units | B19: 14 | C19: ='2015 Reserve Cost Estimates'!L11 -> 3600.131736 | D19: =C19/B19 -> 257.1522669 | E19: =D19/$B$17 -> 85.71742229 | F19: =E19/12 -> 7.143118524 | H19: =F19 -> 7.143118524 | I19: =F19 -> 7.143118524 | J19: =F19 -> 7.143118524 | K19: =F19 -> 7.143118524 | L19: =E19*B19 -> 1200.043912 | M19: for 14 units | P19: =SUM(H19:K19) -> 28.5724741 | Q19: =P19/P41 -> 0.09213104483 | S19: =H19*8+I19*2+J19*2+K19*2 -> 100.0036593
A21: Painting
A22: Recurrence in Years | B22: 5
A23: Address | B23: No. Units | C23: Cost | D23: Cost / Unit | E23: Cost / Unit / Year | F23: Cost / Unit / Month
A24: 1270 | B24: 8 | C24: ='2015 Reserve Cost Estimates'!L20 -> 2190.004962 | D24: =C24/B24 -> 273.7506202 | E24: =D24/$B$22 -> 54.75012404 | F24: =E24/12 -> 4.562510337 | H24: =F24 -> 4.562510337 | L24: =E24*B24 -> 438.0009924 | M24: for 8 units
A25: 1272 | B25: 2 | C25: ='2015 Reserve Cost Estimates'!L21 -> 1460.003308 | D25: =C25/B25 -> 730.0016539 | E25: =D25/$B$22 -> 146.0003308 | F25: =E25/12 -> 12.16669423 | I25: =F25 -> 12.16669423 | L25: =E25*B25 -> 292.0006616 | M25: for 2 units
A26: 1274 | B26: 2 | C26: ='2015 Reserve Cost Estimates'!L22 -> 1460.003308 | D26: =C26/B26 -> 730.0016539 | E26: =D26/$B$22 -> 146.0003308 | F26: =E26/12 -> 12.16669423 | J26: =F26 -> 12.16669423 | L26: =E26*B26 -> 292.0006616 | M26: for 2 units
A27: 1276 | B27: 2 | C27: ='2015 Reserve Cost Estimates'!L23 -> 1460.003308 | D27: =C27/B27 -> 730.0016539 | E27: =D27/$B$22 -> 146.0003308 | F27: =E27/12 -> 12.16669423 | K27: =F27 -> 12.16669423 | L27: =E27*B27 -> 292.0006616 | M27: for 2 units
P28: =SUM(H24,I25,J26,K27) -> 41.06259303 | Q28: =P28/P41 -> 0.1324050408 | S28: =H24*8+I25*2+J26*2+K27*2 -> 109.5002481
A30: Deck Repair
A31: Recurrence in Years | B31: 15
A32: Address | B32: No. Units | C32: Cost | D32: Cost / Unit | E32: Cost / Unit / Year | F32: Cost / Unit / Month
A33: 1270 | B33: 8 | C33: ='2015 Reserve Cost Estimates'!L30 -> 4569.6 | D33: =C33/B33 -> 571.2 | E33: =D33/$B$31 -> 38.08 | F33: =E33/12 -> 3.173333333 | H33: =F33 -> 3.173333333 | L33: =E33*B33 -> 304.64 | M33: for 8 units
A34: 1272 | B34: 2 | C34: ='2015 Reserve Cost Estimates'!L31 -> 5013.3 | D34: =C34/B34 -> 2506.65 | E34: =D34/$B$31 -> 167.11 | F34: =E34/12 -> 13.92583333 | I34: =F34 -> 13.92583333 | L34: =E34*B34 -> 334.22 | M34: for 2 units
A35: 1274 | B35: 2 | C35: ='2015 Reserve Cost Estimates'!L32 -> 3406.8 | D35: =C35/B35 -> 1703.4 | E35: =D35/$B$31 -> 113.56 | F35: =E35/12 -> 9.463333333 | J35: =F35 -> 9.463333333 | L35: =E35*B35 -> 227.12 | M35: for 2 units
A36: 1276 | B36: 2 | C36: ='2015 Reserve Cost Estimates'!L33 -> 4284 | D36: =C36/B36 -> 2142 | E36: =D36/$B$31 -> 142.8 | F36: =E36/12 -> 11.9 | K36: =F36 -> 11.9 | L36: =E36*B36 -> 285.6 | M36: for 2 units
L37: =SUM(L19:L36) -> 3665.626889 | P37: =SUM(H33,I34,J35,K36) -> 38.4625 | Q37: =P37/P41 -> 0.1240211226 | S37: =H33*8+I34*2+J35*2+K36*2 -> 95.965
G41: Total Reserve Fund Rounded Up To Nearest Whole Dollar | H41: =ROUNDUP(SUM(H10,H19,H24,H33),0) -> 47 | I41: =ROUNDUP(SUM(I11,I19,I25,I34),0) -> 95 | J41: =ROUNDUP(SUM(J12,J19,J26,J35),0) -> 97 | K41: =ROUNDUP(SUM(K13,K19,K27,K36),0) -> 74 | L41: =(SUM(H41*8)+SUM(I41:K41)*2)*12 -> 10896 | M41: Total Reserve Annual | P41: =SUM(P15,P19,P28,P37) -> 310.1286233 | Q41: =SUM(Q15,Q19,Q28,Q37) -> 1 | S41: =SUM(S15,S19,S28,S37) -> 896.4791402
M42: after Rounding Applied
A45: General Operating Fund, ALL Addresses (Annual)
A46: Recurrence in Years | B46: 1
A47: Expense | C47: 2014 Annual Cost | D47: 2015 Annual Cost?
A48: Administration Fee | C48: 10 | D48: 10
A49: Building Maintenance | C49: 2000 | D49: 2000 | E49: *increased in 2013 due to lack of additional reserve fund, decreased in 2014 due to new deck maintenance reserve fund
A50: Dues and Subscriptions | C50: 114 | D50: 114
A51: Electric House Meter | C51: 125 | D51: 125
A52: Electric House Meter 2 | C52: 220 | D52: 220
A53: Electric House Meter 3 | E53: *there is no third meter
A54: Grounds Improvement | C54: 300 | D54: 300
A55: Landscaping Repayment | C55: 600 | D55: 600
A56: Insurances | C56: 3000 | D56: 3300
A57: Lawn Care | C57: 3500 | D57: 3500
A58: Legal-Professional Fees | C58: 500 | D58: 500
A59: Snow Removal | C59: 3000 | D59: 3100
A60: Internet | C60: 420 | D60: 420
A61: Supplies | C61: 200 | D61: 200 | L61: Check: Total Annual Contribution Per Address
A62: Water and Hydrant Systm | C62: 280 | D62: 280 | L62: =D65 -> 14669 | M62: Total Gen Fund Annual
L64: =SUM(L41+L62) -> 25565 | M64: Total Gen Fund plus Reserve (before rounding up)
A65: Total General Fund Costs | C65: =SUM(C48:C62) -> 14269 | D65: =SUM(D48:D62) -> 14669
A67: Address | B67: No. of Units | C67: General Operating Fund | D67: Cost / Unit | E67: Cost / Unit / Year | F67: Cost / Unit / Month | S67: General Fund Totals Per Month Thru
A68: All Units | B68: 14 | C68: =D65 -> 14669 | D68: =C68/B68 -> 1047.785714 | E68: =D68/B46 -> 1047.785714 | F68: =E68/12 -> 87.31547619 | H68: =F68 -> 87.31547619 | I68: =F68 -> 87.31547619 | J68: =F68 -> 87.31547619 | K68: =F68 -> 87.31547619
G70: Monthly Totals (General Operating + Reserves) For Annual Budget | H70: =SUM(H68,H33,H24,H19,H10) -> 133.3524585 | I70: =SUM(I68,I34,I25,I19,I11) -> 181.8154149 | J70: =SUM(J68,J35,J26,J19,J12) -> 183.5976658 | K70: =SUM(K68,K36,K27,K19,K13) -> 160.624989
S71: =S10 -> 2014-12-01
G72: General Operating Fund Rounded Up To Nearest Whole Dollar | H72: =ROUNDUP(H68,0) -> 88 | I72: =ROUNDUP(I68,0) -> 88 | J72: =ROUNDUP(J68,0) -> 88 | K72: =ROUNDUP(K68,0) -> 88 | S72: =H72*8+I72*2+J72*2+K72*2 -> 1232
G75: Address | H75: 1270 | I75: 1272 | J75: 1274 | K75: 1276
G76: 2015 Total Monthly Fee Distribution Per Unit (using rounded) | H76: =SUM(H41,H72) -> 135 | I76: =SUM(I41,I72) -> 183 | J76: =SUM(J41,J72) -> 185 | K76: =SUM(K41,K72) -> 162
S77: BANK DEPOSITS SCHEDULE
S78: Fund Distribution from Fees Per Month thru
G79: Total Monthly Fee Distribution Break-Down:
G80: Reserve Fund | H80: =H41 -> 47 | I80: =I41 -> 95 | J80: =J41 -> 97 | K80: =K41 -> 74
G81: General Fund | H81: =H72 -> 88 | I81: =I72 -> 88 | J81: =J72 -> 88 | K81: =K72 -> 88
S82: =S71 -> 2014-12-01
G83: Total Monthly General Fund Contribution base on analysis | H83: =H81*14 -> 1232 | I83: =H83/(H83+H84) -> 0.5757009346 | R83: General Fund | S83: =S72 -> 1232
G84: Total Monthly Reserve Fund Contribution base on analysis | H84: =H80*8+I80*2+J80*2+K80*2 -> 908 | I84: =H84/(H83+H84) -> 0.4242990654 | R84: Roofing Fund | S84: =S15 -> 591.0102328
R85: Road Repair | S85: =S19 -> 100.0036593
G86: 2012 Prior Year Fee | H86: 120 | I86: 155 | J86: 160 | K86: 137 | R86: Painting | S86: =S28 -> 109.5002481
G87: 2013 Prior Year Fee | H87: 129 | I87: 165 | J87: 171 | K87: 147 | R87: Deck Repair | S87: =S37 -> 95.965
G88: 2014 Fee Analysis | H88: 131 | I88: 178 | J88: 180 | K88: 157 | R88: Total | S88: =SUM(S83:S87) -> 2128.47914
G89: 2015 Fee Analysis | H89: =H76 -> 135 | I89: =I76 -> 183 | J89: =J76 -> 185 | K89: =K76 -> 162
G90: % Change | H90: =(H89-H88)/H88 -> 0.03053435115 | I90: =(I89-I88)/I88 -> 0.02808988764 | J90: =(J89-J88)/J88 -> 0.02777777778 | K90: =(K89-K88)/K88 -> 0.03184713376
R91: Rounding (Surplus) | S91: =S92-S88 -> 11.52085982
R92: Check (Fees Totals) | S92: =H89*8+I89*2+J89*2+K89*2 -> 2140
F94: Board Assigned General Fund Contribution | H94: =SUM((H76*8)*I83)+(I76*2*I83)+(J76*2*I83)+(K76*2*I83) -> 1232 | I94: =H94/H96 -> 0.5828659758 | R94: Check (Per Month totals) | S94: =S72+S41 -> 2128.47914
F95: Board Assigned Reserve Fund Contribution | H95: =(H88*8*I84)+(I88*2*I84)+(J88*2*I84)+(K88*2*I84) -> 881.6934579 | I95: =H95/H96 -> 0.4171340242
F96: Total | H96: =SUM(H94:H95) -> 2113.693458

Sheet 2015 Budget (hidden)
B1: Hilary Heights Condominium Owners' Association 2015 Operating Budget
B3: Category / Account | C3: Annual Budget Average per Month | D3: Yearly Total
B4: Business Income
B5: Business Income - Other | C5: 0 | D5: 0
B6: Account Adjustment Credit | C6: 0 | D6: 0
B7: Association Dues
B8: 1270 - 8 units total | C8: =(('2015 Budget & Fee Analysis'!H76)*8) -> 1080 | D8: =C8*12 -> 12960
B9: 1272 - 2 units total | C9: =('2015 Budget & Fee Analysis'!I76)*2 -> 366 | D9: =C9*12 -> 4392
B10: 1274 - 2 units total | C10: =('2015 Budget & Fee Analysis'!J76)*2 -> 370 | D10: =C10*12 -> 4440
B11: 1276 - 2 units total | C11: =('2015 Budget & Fee Analysis'!K76)*2 -> 324 | D11: =C11*12 -> 3888
B12: Other Income
B13: Income - Other | C13: =D13/12 -> 0 | D13: 0
B14: Interest Income | C14: =D14/12 -> 0 | D14: 0
B15: All Income Sub-Total | C15: =SUM(C5:C14) -> 2140 | D15: =SUM(D5:D14) -> 25680 | E15: <- this is after rounding up
B16: Business Expenses
B17: Business Expenses - Other | C17: =D17/12 -> 0 | D17: 0
B18: Account Adjustment Debit | C18: 0 | D18: 0
B19: Administration Fee (Federal Filing Fee) | C19: =D19/12 -> 0.8333333333 | D19: ='2015 Budget & Fee Analysis'!D48 -> 10
B20: Dues and Subscriptions (CAI) | C20: =D20/12 -> 9.5 | D20: ='2015 Budget & Fee Analysis'!D50 -> 114
B21: Insurances | C21: =D21/12 -> 275 | D21: ='2015 Budget & Fee Analysis'!D56 -> 3300
B22: Legal - Professional Fees | C22: =D22/12 -> 41.66666667 | D22: ='2015 Budget & Fee Analysis'!D58 -> 500
B23: Supplies, Business | C23: =D23/12 -> 16.66666667 | D23: ='2015 Budget & Fee Analysis'!D61 -> 200
B24: Business Expenses Sub-Total | C24: =SUM(C17:C23) -> 343.6666667 | D24: =SUM(D17:D23) -> 4124
B25: Discretionary
B26: Discretionary - Other | C26: =D26/12 -> 0 | D26: 0
B27: Building Maintenance | C27: 166.6666667 | D27: ='2015 Budget & Fee Analysis'!D49 -> 2000
B28: Grounds Improvement | C28: 25 | D28: =SUM('2015 Budget & Fee Analysis'!D54) -> 300
B29: Lawn Care | C29: 291.6666667 | D29: ='2015 Budget & Fee Analysis'!D57 -> 3500
B30: Landscaping Repayment | C30: 50 | D30: ='2015 Budget & Fee Analysis'!D55 -> 600
B31: Internet | C31: 35 | D31: ='2015 Budget & Fee Analysis'!D60 -> 420
B32: Misc | C32: 0 | D32: 0
B33: Snow Removal | C33: 258.3333333 | D33: ='2015 Budget & Fee Analysis'!D59 -> 3100
B34: Discretionary Sub-Total | C34: 826.6666667 | D34: =SUM(D26:D33) -> 9920
B35: Mandatory Expenses
B36: Mandatory Expenses - Other | C36: =D36/12 -> 0 | D36: 0
B37: Bank Charge | C37: =D37/12 -> 0 | D37: 0
B38: Electric House Meters | C38: =D38/12 -> 28.75 | D38: =SUM('2015 Budget & Fee Analysis'!D51:D53) -> 345
B39: Water and Sewer (1270 8-Plex Outdoor Faucets) | C39: =D39/12 -> 23.33333333 | D39: ='2015 Budget & Fee Analysis'!D62 -> 280
B40: Mandatory Expenses Sub-Total | C40: =D40/12 -> 52.08333333 | D40: =SUM(D36:D39) -> 625
B42: Total Expenses - General Fund | C42: =C40+C34+C24 -> 1222.416667 | D42: =D40+D34+D24 -> 14669 | F42: ='2015 Budget & Fee Analysis'!$L$62 -> 14669 | G42: <- Check total for General Operating Fund from prior page
F43: =$C$42*12 -> 14669 | G43: <- Check total General monthly * 12 should equal yearly
B44: Reserve ROOFING Accrual | C44: ='2015 Budget & Fee Analysis'!S15 -> 591.0102328
B45: Reserve ROAD REPAIR Accrual | C45: ='2015 Budget & Fee Analysis'!S19 -> 100.0036593
B46: Reserve PAINTING Accrual | C46: ='2015 Budget & Fee Analysis'!S28 -> 109.5002481
B47: Reserve DECK REPAIR Accrual | C47: ='2015 Budget & Fee Analysis'!S37 -> 95.965
B48: Reserve Surplus Accrual | C48: 0
B49: Total Reserve Bank Account Deposit (Rounded up to nearest whole dollar) | C49: =ROUNDUP(SUM(C44:C48),0) -> 897 | D49: =C49*12 -> 10764
B51: Total Inflows (Income) | C51: =C15 -> 2140 | D51: =D15 -> 25680
B52: Total Outflows (Expenses+Reserve Deposit) | C52: =SUM(C40,C34,C24,C49) -> 2119.416667 | D52: =SUM(D24,D34,D40,D49) -> 25433
B53: Adjustment for Round-Up and Averaging | C53: =C51-C52 -> 20.58333333 | D53: =D51-D52 -> 247
B54: Difference (Must Equal Zero to Balance) | C54: =C51-(C52+C53) -> 0 | D54: =D51-(D52+D53) -> 0

Sheet Notes - keep! (hidden)
B1: 2013 Notes:
A3: 1 | B3: Should road repair be based off of 2012 estimate or off of actual?
A4: 2 | B4: 1276 dues are $20 less per month due to their roof set at 30 years - is this accurate with tree overhang?
B7: 2014 Notes:
A8: 1 | B8: The 2014 budget formulas were adjusted to bring in the correct painting reserve accrual.
A9: 2 | B9: The new deck repair reserve fund was based on the following estimates:
C11: # Posts | D11: Post Total Estimate | E11: # 14 foot Deck Boards | F11: # 16 foot Deck Boards | G11: Deck Board Estimate | H11: # 8 foot Handrails | I11: # 12 foot Handrails | J11: Hand Rail Estimate | K11: Building Total Estimate
B12: 1270 | C12: =3*4 -> 12 | D12: =C12*$B$20 -> 600 | E12: =13*4 -> 52 | F12: 0 | G12: =(E12*$B$21)+(F12*$B$22) -> 2600 | H12: 4 | I12: 4 | J12: =(H12*$B$23)+(I12*$B$24) -> 1280 | K12: =D12+G12+J12 -> 4480 | L12: Note - Budget uses these numbers as base
B13: 1272 | C13: 19 | D13: =C13*$B$20 -> 950 | E13: 37 | F13: 13 | G13: =(E13*$B$21)+(F13*$B$22) -> 2565 | H13: 10 | I13: 0 | J13: =(H13*$B$23)+(I13*$B$24) -> 1400 | K13: =D13+G13+J13 -> 4915 | M13: do not delete!
B14: 1274 | C14: =4*2 -> 8 | D14: =C14*$B$20 -> 400 | E14: 42 | F14: 0 | G14: =(E14*$B$21)+(F14*$B$22) -> 2100 | H14: =3*2 -> 6 | I14: 0 | J14: =(H14*$B$23)+(I14*$B$24) -> 840 | K14: =D14+G14+J14 -> 3340
B15: 1276 | C15: 0 | D15: =C15*$B$20 -> 0 | E15: =21+21+21+21 -> 84 | F15: 0 | G15: =(E15*$B$21)+(F15*$B$22) -> 4200 | H15: 0 | I15: 0 | J15: =(H15*$B$23)+(I15*$B$24) -> 0 | K15: =D15+G15+J15 -> 4200
B18: Estimates for replacement of deck elements (includes labor)
B19: from Brandt Construction in August 2013
B20: 50 | C20: 4x4 post
B21: 50 | C21: 14 foot deck board
B22: 55 | C22: 16 foot deck board
B23: 140 | C23: 8 foot handrail (assumes spindles and footboard - replaced as a unit)
B24: 180 | C24: 12 foot handrail (assumes spindles and footboard - replaced as a unit)
B26: note: 1276 has metal handrails and posts
B27: note: 1272 does not include ground level deck added on after construction

Sheet Instructions (hidden)
B1: Hilary Heights Condominium Owners' Association
B2: Annual Operating Budget
B4: Notes and Instructions for completing
B6: This Excel Workbook was a complete re-design of the workbook used for the 2015 year budget. It was however generated from the 2015 budget year workbook. Those worksheets for the 2015 budget are preserved in this new workbook; they are hidden at the front end of this new workbook and can be referenced or viewed by using the unhide command. All the worksheets in this new budget workbook are PROTECTED without a password. Only the YELLOW UNLOCKED data INPUT cells can be selected. The author of this workbook is Richard Rooker (920-207-4471).
B8: Cell Color Legend:
B10: Sampe | C10: Reference Information
B12: Sample | C12: Date Input cells. These are the only unlocked cells
B14: Sample | C14: Calculated
B16: Sample | C16: Calculated
B18: Sample | C18: These are considered fixed input data, changeable by the Board of Directors at any time.
A20: 1 | B20: Before Inputing any data for the NEW budget year (labeled "Current Budget Year"), be sure to print out a PDF record of the "Budget Report" if you haven't done so already.
B21: If you wish to keep a copy of this complete workbook for a particular budget year, then create and save that copy for the record before inputing any data for the new ("Current") budget year.
A23: 2 | B23: Fill in the Input information on the "Tables & References" worksheet.
A25: 3 | B25: Fill in the INPUT (YELLOW Cells) information on the "RESERVE Cost Estimates" worksheet. If you do NOT have actual quotes for the specific cost item, the worksheet will calculate an estimate for you using the previous year's estimate and the inflation and construction cost factors. If you DO have a quote for the specific cost item, enter it into the appropriate cell. A quoted cost will always take precedent over an estimated cost in the calculations.
A27: 4 | B27: Fill in the INPUT (YELLOW cells) information on the "GENERAL FUND Estimates" worksheet. As you will most likely be putting together the new budget prior to the end of the past year, it will be necessary to make a combination of either extrapolated values from your Quicken cost reports and/or your best guesses.
A29: 5 | B29: The "Calculations" worksheet will automatically make all the necessary calculations to generate the "Budget Report", including the new current year Unit Dues.

Sheet Tables & References
G2: General Fund Expenses | J2: Reserve Funds
B3: BUDGET YEAR | G3: Category | H3: Type | J3: Roofing Accrual
B4: Current (New) Budget Year | C4: 2019 | G4: Dues and Subscriptions | H4: Business | J4: Road Maintenance Accrual
B5: Previous Budget Year | C5: =IF(C4="","",C4-1) -> 2018 | J5: Painting/Power Washing Accrual
G6: Supplies, Business | H6: Business | J6: General Building Maintenance Accrual
G7: Bank Charge | H7: Business | J7: Insurance Accrual
B8: UNIT INFORMATION | G8: Business, Other | H8: Business | J8: Legal-Profession Fees Accrual
B9: Unit # | C9: No. Units | D9: Year Built | G9: Grounds Improvement | H9: Business
G10: Landscaping Repayment | H10: Discretionary | J10: General Fund Expense Types
B11: 1270 | C11: 8 | D11: 2000 | G11: Lawn Care | H11: Discretionary | J11: Business
B12: 1272 | C12: 2 | D12: 2001 | G12: Snow Removal | H12: Discretionary | J12: Discretionary
B13: 1274 | C13: 2 | D13: 2003 | G13: Wireless Internet | H13: Discretionary | J13: Mandatory
B14: 1276 | C14: 2 | D14: 2010 | G14: Discretionary, Other | H14: Discretionary | J14: Other
B15: 1278 | C15: 2 | D15: 2016 | G15: Electric House Meter 1 | H15: Discretionary
G16: Electric House Meter 2 | H16: Mandatory
G17: Water and Sewer | H17: Mandatory
B18: RESERVE COST FREQUENCIES IN YEARS | G18: Mandatory, Other | H18: Mandatory
B20: Roof Replacement 1270, 1272, 1274 | C20: 20
B21: Roof Replacement 1276 | C21: 30
B22: Roof Replacement 1278 | C22: 30
B24: Road Repair and Sealing | C24: 3
B25: Painting | C25: 6 | D25: Changed from 5 for 2019
B26: General Maintenance | C26: 1
B27: Insurance | C27: 1
B28: Legal Fees | C28: 1
B31: CONSTRUCTION COSTS
B32: Material & Labor Cost Increase for this budget | C32: 0.04
B39: INFLATION RATE
B40: Inflation Rate used for this budget | C40: 0.029

Sheet RESERVE Cost Estimates
D3: HHCOA Estimated Reserve Costs
D4: Previous Budget Year | E4: Current Budget Year | G4: Precedent Value: An actual Quote value will override any Estimate value. It is this value that will be used in the calculations | H4: Cost Per Year
D5: =previous_budget_year -> 2018 | E5: =current_budget_year -> 2019 | F5: =current_budget_year -> 2019
D6: Estimate | E6: Calculated Estimate | F6: From Quote or New Estimate
B7: ='Tables & References'!J3 -> Roofing Accrual
B8: 1270 | D8: 54907.678 | E8: =IF(D8="","",D8+(D8*(inflation_rate+construction_cost_increase))) -> 58696.30778 | F8: =AVERAGE(D8:E8) -> 56801.99289 | G8: =IF(AND(E8="",F8=""),"",IF(F8="",E8,F8)) -> 56801.99289 | H8: =G8/roofing_recurrence_A -> 2840.099645 | I8: Latest Quote is from 2016
B9: 1272 | D9: 27413.568 | E9: 29305.10419 | F9: =AVERAGE(D9:E9) -> 28359.3361 | G9: =IF(AND(E9="",F9=""),"",IF(F9="",E9,F9)) -> 28359.3361 | H9: =G9/roofing_recurrence_A -> 1417.966805
B10: 1274 | D10: 29600 | E10: 31642.4 | F10: 30621.2 | G10: 30621.2 | H10: =G10/roofing_recurrence_A -> 1531.06
B11: 1276 | D11: 26150 | E11: 27954.35 | F11: 27052.175 | G11: 27052.175 | H11: =G11/roofing_recurrence_B -> 901.7391667
B12: 1278* | D12: 26150 | E12: 27954.35 | F12: 27052.175 | G12: 27052.175 | H12: =G12/roofing_recurrence_B -> 901.7391667
B14: *Estimated for 2018
H15: =SUM(H8:H14) -> 7592.604783
B16: ='Tables & References'!J4 -> Road Maintenance Accrual
B17: All Units | D17: 6000 | E17: =IF(D17="","",D17+(D17*(inflation_rate+construction_cost_increase))) -> 6414 | G17: 6414 | H17: =G17/road_recurrence -> 2138 | I17: 2016 $2,940 for crack sealing plus $3,600 quoted sealing for this year
B19: ='Tables & References'!J5 -> Painting/Power Washing Accrual
B20: 1270 | D20: 0 | E20: =IF(D20="","",D20+(D20*(inflation_rate+construction_cost_increase))) -> 0 | F20: 2615 | G20: 2615 | H20: =G20/painting_recurrence -> 435.8333333 | I20: 1270 was painted in 2017 need to renew accrual for 2019
B21: 1272 | D21: 1700 | E21: 1817.3 | G21: 1817.3 | H21: 302.8833333
B22: 1274 | D22: 1000 | E22: 1069 | G22: 1069 | H22: 178.1666667
B23: 1276 | D23: 800 | E23: 855.2 | G23: 855.2 | H23: 142.5333333
B24: 1278 | D24: 600 | E24: 641.4 | G24: 641.4 | H24: 106.9
H26: =SUM(H20:H25) -> 1166.316667
B27: ='Tables & References'!J6 -> General Building Maintenance Accrual
B28: 1270 | D28: 2000 | E28: =IF(D28="","",D28+(D28*(inflation_rate+construction_cost_increase))) -> 2138 | G28: 2138 | H28: =G28/maintenance_recurrence -> 2138
B29: 1272 | D29: 750 | E29: 801.75 | G29: 801.75 | H29: 801.75
B30: 1274 | D30: 750 | E30: 801.75 | G30: 801.75 | H30: 801.75
B31: 1276 | D31: 750 | E31: 801.75 | G31: 801.75 | H31: 801.75
B32: 1278 | D32: 200 | E32: 213.8 | G32: 213.8 | H32: 213.8 | I32: This was budgeted at 200 last year because it was brand new. There is 6 years difference between the age of 1276 and 1278. I think we should bump this number up $100 each year until it reaches the same number as 1276.
H34: =SUM(H28:H33) -> 4757.05
B35: ='Tables & References'!J7 -> Insurance Accrual
B36: All Units | D36: 6500 | E36: =IF(D36="","",D36+(D36*(inflation_rate+construction_cost_increase))) -> 6948.5 | F36: 5800 | G36: =IF(AND(E36="",F36=""),"",IF(F36="",E36,F36)) -> 5800 | H36: =G36 -> 5800 | I36: Insurance is at the rate including 1280. BODs on 10/07/2017 meeting decided to keep the $6,500 cost to cover $1,000 deductible.
I37: 2019 Budget: No indication that 1280 will be built yet so keep at 6500
B38: Legal-Professional Fees Accrual | I38: 7/22/2018 There is a $1,300 balance in Insurance Accrual after the second payment for 2018, which will cover the $1,000 deductible. So for the coming 2019 Budget, budget for only the cost of insurance.
B39: All Units | D39: 500 | E39: =IF(D39="","",D39+(D39*(inflation_rate+construction_cost_increase))) -> 534.5 | F39: 1200 | G39: =IF(AND(E39="",F39=""),"",IF(F39="",E39,F39)) -> 1200 | H39: =G39 -> 1200
D43: Total | E43: =SUM(E8:E39) -> 198589.462 | F43: Total | G43: =SUM(G8:G39) -> 195055.829 | H43: =SUM(H15,H17,H26,H34,H36,H39) -> 22653.97145

Sheet GENERAL FUND Estimates
B1: HHCOA Estimated General Fund Costs
B2: Expense Category | C2: Expense Type | D2: Previous Budget Year | E2: Current Budget Year | J2: Parms Combo Plan | L2: Original Budget
D3: =previous_budget_year -> 2018 | E3: =previous_budget_year -> 2018 | F3: =current_budget_year -> 2019 | G3: Notes | I3: Lawn Care | J3: =945*7+(955) -> 7570 | L3: 7367
D4: Budget | E4: Actual: Last 12 months by category per Quicken Reports. | F4: Budget | G4: 2017-2018 Actual taken from the PAST 12 MONTHS Spending By Category report in QUICKEN as of 7/10/2018 | I4: Snow | J4: =945*5 -> 4725 | L4: 4250
B5: Administration Fee | C5: Business | D5: 12 | E5: 10 | F5: 10 | J5: =SUM(J3:J4) -> 12295 | L5: =SUM(L3:L4) -> 11617
B6: Dues and Subscriptions | C6: Business | D6: 130 | E6: 167 | F6: 170 | G6: Includes Annual Quicken Renewal for Mary | K6: Difference: | L6: =J5-L5 -> 678
I7: Remove plastic edging
B8: Supplies, Business | C8: Business | D8: 150 | E8: 284 | F8: 300 | I8: 1500 | J8: 1270 | L8: =678/12/16 -> 3.53125
B9: Bank Charge | C9: Business | D9: 0 | E9: 0 | F9: 10 | I9: 1330 | J9: 1272
B10: Business, Other | C10: Business | D10: 0 | E10: 0 | F10: 100 | I10: 1330 | J10: 1274
B11: Grounds Improvement | C11: Discretionary | D11: 500 | E11: 229 | F11: 500 | I11: 1330 | J11: 1276 | L11: Daun's Lawn Care Estimate 2017
B12: Landscaping Repayment | C12: Discretionary | D12: 600 | E12: 600 | F12: 600 | I12: =SUM(I8:I11) -> 5490 | M12: Cost Each | N12: Times per Season | O12: Total/Year | P12: Total/Month
B13: Lawn Care | C13: Discretionary | D13: 3500 | E13: 9838 | F13: 7570 | G13: $945/mnth x 7 mnths + $955 for mulching and edging and aeration | I13: 2019 Snow removal | L13: Spring Clean Up | M13: 350 | N13: 1 | O13: =M13*N13 -> 350 | P13: =O13/12 -> 29.16666667
B14: Snow Removal | C14: Discretionary | D14: 3000 | E14: 3994 | F14: 4725 | G14: $945/mnth x 5 months | I14: 5 years | J14: 14442 | L14: Cut and Trim | M14: 150 | N14: =4*6 -> 24 | O14: =M14*N14 -> 3600 | P14: =O14/12 -> 300
B15: Wireless Internet | C15: Discretionary | D15: 500 | E15: 0 | F15: 0 | L15: Weed Control (manual) | O15: =M15*N15 -> 0 | P15: =O15/12 -> 0
B16: Discretionary, Other | C16: Discretionary | D16: 0 | E16: 353 | F16: 250 | I16: Average Per Year | J16: =J14/5 -> 2888.4 | L16: Fertilizing/Chem Weed Ctrl | M16: 160 | N16: 4 | O16: 640 | P16: 53.33333333
B17: Electric House Meter 1 | C17: Mandatory | D17: 215 | E17: 194 | F17: 200 | I17: Leave at 3,000? | L17: Prunning ($45/hr) | M17: 650 | N17: 1 | O17: 650 | P17: 54.16666667
B18: Electric House Meter 2 | C18: Mandatory | D18: 330 | E18: 258 | F18: 260 | I18: Add some repair work from Jason $945 | L18: Mulching@$50/yd | M18: 500 | N18: 0.5 | O18: 250 | P18: 20.83333333
B19: Water and Sewer | C19: Mandatory | D19: 250 | E19: 214 | F19: 250 | L19: Edging | M19: 225 | N19: 0.5 | O19: 112.5 | P19: 9.375
B20: Mandatory, Other | C20: Mandatory | D20: 0 | E20: 0 | F20: 100 | L20: Fall Clean Up | M20: 350 | N20: 1 | O20: 350 | P20: 29.16666667
L21: Aeration | M21: 300 | N21: 1 | O21: 300 | P21: 25
L23: Retention Pond Cutting | M23: 275 | N23: 1 | O23: 275 | P23: 22.91666667
B25: Total | D25: =SUM(D5:D24) -> 9187 | E25: =SUM(E5:E24) -> 16141 | F25: =SUM(F5:F24) -> 15045 | L25: Total Lawn Care | O25: =SUM(O13:O23) -> 6527.5 | P25: =SUM(P13:P23) -> 543.9583333

Sheet Calculations
B4: Reserve Costs Distributions | H4: Total Reserve Costs | L4: General Fund Costs Distributions | Q4: Total Fund Costs | T4: Association Dues | X4: Income | AL4: CHECK
D5: Cost / Building | E5: Cost per Unit | F5: Cost per Unit/Year | G5: Cost per Unit/Month | H5: Total Cost per Year | I5: Total Cost per Month | N5: Annual Cost | O5: Cost per Unit/Year | P5: Cost per Unit/Month | Q5: Total Cost per Year | R5: Total Cost per Month | AL5: RESERVE COSTS / Unit / Month | AR5: GENERAL COSTS / Unit / Month | AT5: TOTAL COSTS / Unit /Month
B6: =IF('RESERVE Cost Estimates'!B7="","",'RESERVE Cost Estimates'!B7) -> Roofing Accrual | L6: Category | M6: Type | T6: Unit | U6: Monthly Calculated Fee | V6: Monthly Fee (Rounded Up) | X6: Unit | Y6: Unit Fee/Month | Z6: Unit Fee/Year | AL6: Roofing | AM6: Road Repair | AN6: Painting & Power Wash | AO6: General Maintenance | AP6: Insurance | AQ6: Legal-Prof. Fees
B7: =IF('RESERVE Cost Estimates'!B8="","",'RESERVE Cost Estimates'!B8) -> 1270 | D7: =IF('RESERVE Cost Estimates'!G8="","",'RESERVE Cost Estimates'!G8) -> 56801.99289 | E7: =IF(D7="","",D7/'Tables & References'!C11) -> 7100.249111 | F7: =IF(E7="","",E7/roofing_recurrence_A) -> 355.0124556 | G7: =IF(F7="","",F7/12) -> 29.5843713 | H7: =IF(F7="","",F7*'Tables & References'!C11) -> 2840.099645 | I7: =IF(H7="","",H7/12) -> 236.6749704 | L7: =IF('GENERAL FUND Estimates'!B5="","",'GENERAL FUND Estimates'!B5) -> Administration Fee | M7: =IF('GENERAL FUND Estimates'!C5="","",'GENERAL FUND Estimates'!C5) -> Business | N7: =IF('GENERAL FUND Estimates'!F5="","",'GENERAL FUND Estimates'!F5) -> 10 | O7: =IF(N7="","",N7/SUM('Tables & References'!$C$11:$C$16)) -> 0.625 | P7: =IF(O7="","",O7/12) -> 0.05208333333 | Q7: =IF(O7="","",O7*SUM('Tables & References'!$C$11:$C$16)) -> 10 | R7: =IF(Q7="","",Q7/12) -> 0.8333333333 | T7: =IF('Tables & References'!B11="","",'Tables & References'!B11) -> 1270 | U7: =IF(T7="","",SUM(G7,G16,G19,G27,G35,G38,P28)) -> 182.3482602 | V7: =IF(U7="","",ROUNDUP(U7,0)) -> 183 | X7: =T7 -> 1270 | Y7: =IF(X7="","",V7*'Tables & References'!C11) -> 1464 | Z7: =IF(X7="","",Y7*12) -> 17568 | AK7: 1270 | AL7: =G7 -> 29.5843713 | AM7: =$G$16 -> 11.13541667 | AN7: =G19 -> 4.539930556 | AO7: =G27 -> 22.27083333 | AP7: =$G$35 -> 30.20833333 | AQ7: =$G$38 -> 6.25 | AR7: =$P$28 -> 78.359375 | AT7: =SUM(AL7:AR7) -> 182.3482602
B8: =IF('RESERVE Cost Estimates'!B9="","",'RESERVE Cost Estimates'!B9) -> 1272 | D8: =IF('RESERVE Cost Estimates'!G9="","",'RESERVE Cost Estimates'!G9) -> 28359.3361 | E8: =IF(D8="","",D8/'Tables & References'!C12) -> 14179.66805 | F8: =IF(E8="","",E8/roofing_recurrence_A) -> 708.9834024 | G8: =IF(F8="","",F8/12) -> 59.0819502 | H8: =IF(F8="","",F8*'Tables & References'!C12) -> 1417.966805 | I8: =IF(H8="","",H8/12) -> 118.1639004 | L8: =IF('GENERAL FUND Estimates'!B6="","",'GENERAL FUND Estimates'!B6) -> Dues and Subscriptions | M8: =IF('GENERAL FUND Estimates'!C6="","",'GENERAL FUND Estimates'!C6) -> Business | N8: =IF('GENERAL FUND Estimates'!F6="","",'GENERAL FUND Estimates'!F6) -> 170 | O8: =IF(N8="","",N8/SUM('Tables & References'!$C$11:$C$16)) -> 10.625 | P8: =IF(O8="","",O8/12) -> 0.8854166667 | Q8: =IF(O8="","",O8*SUM('Tables & References'!$C$11:$C$16)) -> 170 | R8: =IF(Q8="","",Q8/12) -> 14.16666667 | T8: =IF('Tables & References'!B12="","",'Tables & References'!B12) -> 1272 | U8: =IF(T8="","",SUM(G8,G16,G20,G28,G35,G38,P28)) -> 231.0614641 | V8: =IF(U8="","",ROUNDUP(U8,0)) -> 232 | X8: =T8 -> 1272 | Y8: =IF(X8="","",V8*'Tables & References'!C12) -> 464 | Z8: =IF(X8="","",Y8*12) -> 5568 | AK8: 1272 | AL8: =G8 -> 59.0819502 | AM8: =$G$16 -> 11.13541667 | AN8: =G20 -> 12.62013889 | AO8: =G28 -> 33.40625 | AP8: =$G$35 -> 30.20833333 | AQ8: =$G$38 -> 6.25 | AR8: =$P$28 -> 78.359375 | AT8: =SUM(AL8:AR8) -> 231.0614641
B9: =IF('RESERVE Cost Estimates'!B10="","",'RESERVE Cost Estimates'!B10) -> 1274 | D9: =IF('RESERVE Cost Estimates'!G10="","",'RESERVE Cost Estimates'!G10) -> 30621.2 | E9: =IF(D9="","",D9/'Tables & References'!C13) -> 15310.6 | F9: =IF(E9="","",E9/roofing_recurrence_A) -> 765.53 | G9: 63.79416667 | H9: =IF(F9="","",F9*'Tables & References'!C13) -> 1531.06 | I9: 127.5883333 | L9: =IF('GENERAL FUND Estimates'!B7="","",'GENERAL FUND Estimates'!B7) ->  | M9: =IF('GENERAL FUND Estimates'!C7="","",'GENERAL FUND Estimates'!C7) ->  | N9: =IF('GENERAL FUND Estimates'!F7="","",'GENERAL FUND Estimates'!F7) ->  | O9: =IF(N9="","",N9/SUM('Tables & References'!$C$11:$C$16)) ->  | Q9: =IF(O9="","",O9*SUM('Tables & References'!$C$11:$C$16)) ->  | T9: =IF('Tables & References'!B13="","",'Tables & References'!B13) -> 1274 | U9: =IF(T9="","",SUM(G9,G16,G21,G29,G35,G38,P28)) -> 230.5771528 | V9: 231 | X9: 1274 | Y9: =IF(X9="","",V9*'Tables & References'!C13) -> 462 | Z9: 5544 | AK9: 1274 | AL9: 63.79416667 | AM9: 11.13541667 | AN9: 7.423611111 | AO9: 33.40625 | AP9: =$G$35 -> 30.20833333 | AQ9: 6.25 | AR9: 78.359375 | AT9: 230.5771528
B10: =IF('RESERVE Cost Estimates'!B11="","",'RESERVE Cost Estimates'!B11) -> 1276 | D10: =IF('RESERVE Cost Estimates'!G11="","",'RESERVE Cost Estimates'!G11) -> 27052.175 | E10: =IF(D10="","",D10/'Tables & References'!C14) -> 13526.0875 | F10: =IF(E10="","",E10/roofing_recurrence_B) -> 450.8695833 | G10: 37.57246528 | H10: =IF(F10="","",F10*'Tables & References'!C14) -> 901.7391667 | I10: 75.14493056 | L10: =IF('GENERAL FUND Estimates'!B8="","",'GENERAL FUND Estimates'!B8) -> Supplies, Business | M10: =IF('GENERAL FUND Estimates'!C8="","",'GENERAL FUND Estimates'!C8) -> Business | N10: =IF('GENERAL FUND Estimates'!F8="","",'GENERAL FUND Estimates'!F8) -> 300 | O10: =IF(N10="","",N10/SUM('Tables & References'!$C$11:$C$16)) -> 18.75 | P10: 1.5625 | Q10: =IF(O10="","",O10*SUM('Tables & References'!$C$11:$C$16)) -> 300 | R10: 25 | T10: =IF('Tables & References'!B14="","",'Tables & References'!B14) -> 1276 | U10: =IF(T10="","",SUM(G10,G16,G22,G30,G35,G38,P28)) -> 202.8707292 | V10: 203 | X10: 1276 | Y10: =IF(X10="","",V10*'Tables & References'!C14) -> 406 | Z10: 4872 | AK10: 1276 | AL10: 37.57246528 | AM10: 11.13541667 | AN10: 5.938888889 | AO10: 33.40625 | AP10: =$G$35 -> 30.20833333 | AQ10: 6.25 | AR10: 78.359375 | AT10: 202.8707292
B11: =IF('RESERVE Cost Estimates'!B12="","",'RESERVE Cost Estimates'!B12) -> 1278* | D11: =IF('RESERVE Cost Estimates'!G12="","",'RESERVE Cost Estimates'!G12) -> 27052.175 | E11: =IF(D11="","",D11/'Tables & References'!C15) -> 13526.0875 | F11: =IF(E11="","",E11/roofing_recurrence_c) -> 450.8695833 | G11: 37.57246528 | H11: =IF(F11="","",F11*'Tables & References'!C15) -> 901.7391667 | I11: 75.14493056 | L11: =IF('GENERAL FUND Estimates'!B9="","",'GENERAL FUND Estimates'!B9) -> Bank Charge | M11: =IF('GENERAL FUND Estimates'!C9="","",'GENERAL FUND Estimates'!C9) -> Business | N11: =IF('GENERAL FUND Estimates'!F9="","",'GENERAL FUND Estimates'!F9) -> 10 | O11: =IF(N11="","",N11/SUM('Tables & References'!$C$11:$C$16)) -> 0.625 | P11: 0.05208333333 | Q11: =IF(O11="","",O11*SUM('Tables & References'!$C$11:$C$16)) -> 10 | R11: 0.8333333333 | T11: =IF('Tables & References'!B15="","",'Tables & References'!B15) -> 1278 | U11: =IF(T11="","",SUM(G11,G16,G23,G31,G35,G38,P28)) -> 176.8880903 | V11: 177 | X11: 1278 | Y11: =IF(X11="","",V11*'Tables & References'!C15) -> 354 | Z11: 4248 | AK11: 1278 | AL11: 37.57246528 | AM11: 11.13541667 | AN11: 4.454166667 | AO11: 8.908333333 | AP11: =$G$35 -> 30.20833333 | AQ11: 6.25 | AR11: 78.359375 | AT11: 176.8880903
B12: =IF('RESERVE Cost Estimates'!B13="","",'RESERVE Cost Estimates'!B13) ->  | D12: =IF('RESERVE Cost Estimates'!G13="","",'RESERVE Cost Estimates'!G13) ->  | E12: =IF(D12="","",D12/'Tables & References'!C16) ->  | F12: =IF(E12="","",E12/roofing_recurrence_d) ->  | H12: =IF(F12="","",F12*'Tables & References'!C16) ->  | L12: =IF('GENERAL FUND Estimates'!B10="","",'GENERAL FUND Estimates'!B10) -> Business, Other | M12: =IF('GENERAL FUND Estimates'!C10="","",'GENERAL FUND Estimates'!C10) -> Business | N12: =IF('GENERAL FUND Estimates'!F10="","",'GENERAL FUND Estimates'!F10) -> 100 | O12: =IF(N12="","",N12/SUM('Tables & References'!$C$11:$C$16)) -> 6.25 | P12: 0.5208333333 | Q12: =IF(O12="","",O12*SUM('Tables & References'!$C$11:$C$16)) -> 100 | R12: 8.333333333 | T12: =IF('Tables & References'!B16="","",'Tables & References'!B16) ->  | U12: =IF(T12="","",SUM(G12,G16,G24,G32,G35,G38,P28)) ->  | Y12: =IF(X12="","",V12*'Tables & References'!C16) -> 
B13: =IF('RESERVE Cost Estimates'!B15="","",'RESERVE Cost Estimates'!B15) ->  | G13: Total | H13: =SUM(H7:H12) -> 7592.604783 | I13: =SUM(I7:I12) -> 632.7170652 | L13: =IF('GENERAL FUND Estimates'!B11="","",'GENERAL FUND Estimates'!B11) -> Grounds Improvement | M13: =IF('GENERAL FUND Estimates'!C11="","",'GENERAL FUND Estimates'!C11) -> Discretionary | N13: =IF('GENERAL FUND Estimates'!F11="","",'GENERAL FUND Estimates'!F11) -> 500 | O13: =IF(N13="","",N13/SUM('Tables & References'!$C$11:$C$16)) -> 31.25 | P13: 2.604166667 | Q13: =IF(O13="","",O13*SUM('Tables & References'!$C$11:$C$16)) -> 500 | R13: 41.66666667
L14: =IF('GENERAL FUND Estimates'!B12="","",'GENERAL FUND Estimates'!B12) -> Landscaping Repayment | M14: =IF('GENERAL FUND Estimates'!C12="","",'GENERAL FUND Estimates'!C12) -> Discretionary | N14: =IF('GENERAL FUND Estimates'!F12="","",'GENERAL FUND Estimates'!F12) -> 600 | O14: =IF(N14="","",N14/SUM('Tables & References'!$C$11:$C$16)) -> 37.5 | P14: 3.125 | Q14: =IF(O14="","",O14*SUM('Tables & References'!$C$11:$C$16)) -> 600 | R14: 50 | T14: Total Monthly Fee | V14: =V7*8+(SUM(V8:V11)*2) -> 3150 | X14: Checks | Y14: =SUM(Y7:Y13) -> 3150 | Z14: =SUM(Z7:Z12) -> 37800 | AA14: =IF(Z14=Z15,"Checks Agree","Error:Checks Do Not Agree") -> Checks Agree
B15: =IF('RESERVE Cost Estimates'!B16="","",'RESERVE Cost Estimates'!B16) -> Road Maintenance Accrual | L15: =IF('GENERAL FUND Estimates'!B13="","",'GENERAL FUND Estimates'!B13) -> Lawn Care | M15: =IF('GENERAL FUND Estimates'!C13="","",'GENERAL FUND Estimates'!C13) -> Discretionary | N15: =IF('GENERAL FUND Estimates'!F13="","",'GENERAL FUND Estimates'!F13) -> 7570 | O15: =IF(N15="","",N15/SUM('Tables & References'!$C$11:$C$16)) -> 473.125 | P15: 39.42708333 | Q15: =IF(O15="","",O15*SUM('Tables & References'!$C$11:$C$16)) -> 7570 | R15: 630.8333333 | Z15: =Y14*12 -> 37800
B16: =IF('RESERVE Cost Estimates'!B17="","",'RESERVE Cost Estimates'!B17) -> All Units | D16: =IF('RESERVE Cost Estimates'!G17="","",'RESERVE Cost Estimates'!G17) -> 6414 | E16: =IF(D16="","",D16/SUM('Tables & References'!C11:C16)) -> 400.875 | F16: =IF(E16="","",E16/road_recurrence) -> 133.625 | G16: =IF(F16="","",F16/12) -> 11.13541667 | H16: =IF(F16="","",F16*SUM('Tables & References'!C11:C16)) -> 2138 | I16: =IF(H16="","",H16/12) -> 178.1666667 | L16: =IF('GENERAL FUND Estimates'!B14="","",'GENERAL FUND Estimates'!B14) -> Snow Removal | M16: =IF('GENERAL FUND Estimates'!C14="","",'GENERAL FUND Estimates'!C14) -> Discretionary | N16: =IF('GENERAL FUND Estimates'!F14="","",'GENERAL FUND Estimates'!F14) -> 4725 | O16: =IF(N16="","",N16/SUM('Tables & References'!$C$11:$C$16)) -> 295.3125 | P16: 24.609375 | Q16: =IF(O16="","",O16*SUM('Tables & References'!$C$11:$C$16)) -> 4725 | R16: 393.75
B17: =IF('RESERVE Cost Estimates'!B18="","",'RESERVE Cost Estimates'!B18) ->  | L17: =IF('GENERAL FUND Estimates'!B15="","",'GENERAL FUND Estimates'!B15) -> Wireless Internet | M17: =IF('GENERAL FUND Estimates'!C15="","",'GENERAL FUND Estimates'!C15) -> Discretionary | N17: =IF('GENERAL FUND Estimates'!F15="","",'GENERAL FUND Estimates'!F15) -> 0 | O17: =IF(N17="","",N17/SUM('Tables & References'!$C$11:$C$16)) -> 0 | P17: 0 | Q17: =IF(O17="","",O17*SUM('Tables & References'!$C$11:$C$16)) -> 0 | R17: 0 | T17: Monthly Accrual (Reserve) Funds | X17: Monthly Deposits
B18: =IF('RESERVE Cost Estimates'!B19="","",'RESERVE Cost Estimates'!B19) -> Painting/Power Washing Accrual | L18: =IF('GENERAL FUND Estimates'!B16="","",'GENERAL FUND Estimates'!B16) -> Discretionary, Other | M18: =IF('GENERAL FUND Estimates'!C16="","",'GENERAL FUND Estimates'!C16) -> Discretionary | N18: =IF('GENERAL FUND Estimates'!F16="","",'GENERAL FUND Estimates'!F16) -> 250 | O18: =IF(N18="","",N18/SUM('Tables & References'!$C$11:$C$16)) -> 15.625 | P18: 1.302083333 | Q18: =IF(O18="","",O18*SUM('Tables & References'!$C$11:$C$16)) -> 250 | R18: 20.83333333 | T18: ='Tables & References'!J3 -> Roofing Accrual | V18: =I13 -> 632.7170652 | X18: =T18 -> Roofing Accrual | Z18: =ROUNDUP(V18,0) -> 633
B19: =IF('RESERVE Cost Estimates'!B20="","",'RESERVE Cost Estimates'!B20) -> 1270 | D19: =IF('RESERVE Cost Estimates'!G20="","",'RESERVE Cost Estimates'!G20) -> 2615 | E19: =IF(D19="","",D19/'Tables & References'!C11) -> 326.875 | F19: =IF(E19="","",E19/painting_recurrence) -> 54.47916667 | G19: =IF(F19="","",F19/12) -> 4.539930556 | H19: =IF(F19="","",F19*'Tables & References'!C11) -> 435.8333333 | I19: =IF(H19="","",H19/12) -> 36.31944444 | L19: =IF('GENERAL FUND Estimates'!B17="","",'GENERAL FUND Estimates'!B17) -> Electric House Meter 1 | M19: =IF('GENERAL FUND Estimates'!C17="","",'GENERAL FUND Estimates'!C17) -> Mandatory | N19: =IF('GENERAL FUND Estimates'!F17="","",'GENERAL FUND Estimates'!F17) -> 200 | O19: =IF(N19="","",N19/SUM('Tables & References'!$C$11:$C$16)) -> 12.5 | P19: 1.041666667 | Q19: =IF(O19="","",O19*SUM('Tables & References'!$C$11:$C$16)) -> 200 | R19: 16.66666667 | T19: ='Tables & References'!J4 -> Road Maintenance Accrual | V19: =I16 -> 178.1666667 | X19: =T19 -> Road Maintenance Accrual | Z19: =ROUNDUP(V19,0) -> 179
B20: =IF('RESERVE Cost Estimates'!B21="","",'RESERVE Cost Estimates'!B21) -> 1272 | D20: =IF('RESERVE Cost Estimates'!G21="","",'RESERVE Cost Estimates'!G21) -> 1817.3 | E20: =IF(D20="","",D20/'Tables & References'!C12) -> 908.65 | F20: 151.4416667 | G20: =IF(F20="","",F20/12) -> 12.62013889 | H20: =IF(F20="","",F20*'Tables & References'!C12) -> 302.8833333 | I20: =IF(H20="","",H20/12) -> 25.24027778 | L20: =IF('GENERAL FUND Estimates'!B18="","",'GENERAL FUND Estimates'!B18) -> Electric House Meter 2 | M20: =IF('GENERAL FUND Estimates'!C18="","",'GENERAL FUND Estimates'!C18) -> Mandatory | N20: =IF('GENERAL FUND Estimates'!F18="","",'GENERAL FUND Estimates'!F18) -> 260 | O20: =IF(N20="","",N20/SUM('Tables & References'!$C$11:$C$16)) -> 16.25 | P20: 1.354166667 | Q20: =IF(O20="","",O20*SUM('Tables & References'!$C$11:$C$16)) -> 260 | R20: 21.66666667 | T20: ='Tables & References'!J5 -> Painting/Power Washing Accrual | V20: =I25 -> 97.19305556 | X20: Painting/Power Washing Accrual | Z20: 98 | AR20: Dues Comparisons to Previouos Year of: | AS20: =previous_budget_year -> 2018
B21: =IF('RESERVE Cost Estimates'!B22="","",'RESERVE Cost Estimates'!B22) -> 1274 | D21: =IF('RESERVE Cost Estimates'!G22="","",'RESERVE Cost Estimates'!G22) -> 1069 | E21: =IF(D21="","",D21/'Tables & References'!C13) -> 534.5 | F21: 89.08333333 | G21: 7.423611111 | H21: =IF(F21="","",F21*'Tables & References'!C13) -> 178.1666667 | I21: 14.84722222 | L21: =IF('GENERAL FUND Estimates'!B19="","",'GENERAL FUND Estimates'!B19) -> Water and Sewer | M21: =IF('GENERAL FUND Estimates'!C19="","",'GENERAL FUND Estimates'!C19) -> Mandatory | N21: =IF('GENERAL FUND Estimates'!F19="","",'GENERAL FUND Estimates'!F19) -> 250 | O21: =IF(N21="","",N21/SUM('Tables & References'!$C$11:$C$16)) -> 15.625 | P21: 1.302083333 | Q21: =IF(O21="","",O21*SUM('Tables & References'!$C$11:$C$16)) -> 250 | R21: 20.83333333 | T21: ='Tables & References'!J6 -> General Building Maintenance Accrual | V21: =I33 -> 396.4208333 | X21: General Building Maintenance Accrual | Z21: 397 | AR21: increase
B22: =IF('RESERVE Cost Estimates'!B23="","",'RESERVE Cost Estimates'!B23) -> 1276 | D22: =IF('RESERVE Cost Estimates'!G23="","",'RESERVE Cost Estimates'!G23) -> 855.2 | E22: =IF(D22="","",D22/'Tables & References'!C14) -> 427.6 | F22: 71.26666667 | G22: 5.938888889 | H22: =IF(F22="","",F22*'Tables & References'!C14) -> 142.5333333 | I22: 11.87777778 | L22: =IF('GENERAL FUND Estimates'!B20="","",'GENERAL FUND Estimates'!B20) -> Mandatory, Other | M22: =IF('GENERAL FUND Estimates'!C20="","",'GENERAL FUND Estimates'!C20) -> Mandatory | N22: =IF('GENERAL FUND Estimates'!F20="","",'GENERAL FUND Estimates'!F20) -> 100 | O22: =IF(N22="","",N22/SUM('Tables & References'!$C$11:$C$16)) -> 6.25 | P22: 0.5208333333 | Q22: =IF(O22="","",O22*SUM('Tables & References'!$C$11:$C$16)) -> 100 | R22: 8.333333333 | T22: ='Tables & References'!J7 -> Insurance Accrual | V22: =I35 -> 483.3333333 | X22: =T22 -> Insurance Accrual | Z22: =ROUNDUP(V22,0) -> 484 | AP22: =AS20 -> 2018 | AQ22: 2019
B23: =IF('RESERVE Cost Estimates'!B24="","",'RESERVE Cost Estimates'!B24) -> 1278 | D23: =IF('RESERVE Cost Estimates'!G24="","",'RESERVE Cost Estimates'!G24) -> 641.4 | E23: =IF(D23="","",D23/'Tables & References'!C15) -> 320.7 | F23: 53.45 | G23: 4.454166667 | H23: =IF(F23="","",F23*'Tables & References'!C15) -> 106.9 | I23: 8.908333333 | L23: =IF('GENERAL FUND Estimates'!B21="","",'GENERAL FUND Estimates'!B21) ->  | M23: =IF('GENERAL FUND Estimates'!C21="","",'GENERAL FUND Estimates'!C21) ->  | N23: =IF('GENERAL FUND Estimates'!F21="","",'GENERAL FUND Estimates'!F21) ->  | O23: =IF(N23="","",N23/SUM('Tables & References'!$C$11:$C$16)) ->  | Q23: =IF(O23="","",O23*SUM('Tables & References'!$C$11:$C$16)) ->  | T23: ='Tables & References'!J8 -> Legal-Profession Fees Accrual | V23: =I38 -> 100 | X23: =T39 -> Total Monthly General Funds | Z23: =V14-(SUM(Z18:Z22)) -> 1359 | AO23: 1270 | AP23: 159 | AQ23: =V7 -> 183 | AR23: =(AQ23-AP23)/AP23 -> 0.1509433962 | AS23: 2018 ZERO Budget for Painting
B24: =IF('RESERVE Cost Estimates'!B25="","",'RESERVE Cost Estimates'!B25) ->  | D24: =IF('RESERVE Cost Estimates'!G25="","",'RESERVE Cost Estimates'!G25) ->  | E24: =IF(D24="","",D24/'Tables & References'!C16) ->  | H24: =IF(F24="","",F24*'Tables & References'!C16) ->  | L24: =IF('GENERAL FUND Estimates'!B23="","",'GENERAL FUND Estimates'!B23) ->  | M24: =IF('GENERAL FUND Estimates'!C23="","",'GENERAL FUND Estimates'!C23) ->  | N24: =IF('GENERAL FUND Estimates'!F22="","",'GENERAL FUND Estimates'!F22) ->  | O24: =IF(N24="","",N24/SUM('Tables & References'!$C$11:$C$16)) ->  | Q24: =IF(O24="","",O24*SUM('Tables & References'!$C$11:$C$16)) ->  | AO24: 1272 | AP24: 212 | AQ24: =V8 -> 232 | AR24: =(AQ24-AP24)/AP24 -> 0.09433962264
B25: =IF('RESERVE Cost Estimates'!B26="","",'RESERVE Cost Estimates'!B26) ->  | G25: Total | H25: =SUM(H19:H24) -> 1166.316667 | I25: =SUM(I19:I24) -> 97.19305556 | L25: =IF('GENERAL FUND Estimates'!B24="","",'GENERAL FUND Estimates'!B24) ->  | M25: =IF('GENERAL FUND Estimates'!C24="","",'GENERAL FUND Estimates'!C24) ->  | N25: =IF('GENERAL FUND Estimates'!F23="","",'GENERAL FUND Estimates'!F23) ->  | O25: =IF(N25="","",N25/SUM('Tables & References'!$C$11:$C$16)) ->  | Q25: =IF(O25="","",O25*SUM('Tables & References'!$C$11:$C$16)) ->  | T25: Total Monthly Accrual Funds | V25: =SUM(V18:V23) -> 1887.830954 | X25: Check | Z25: =ROUNDUP(SUM(Z18:Z23),0) -> 3150 | AO25: 1274 | AP25: 211 | AQ25: 231 | AR25: 0.09478672986
B26: =IF('RESERVE Cost Estimates'!B27="","",'RESERVE Cost Estimates'!B27) -> General Building Maintenance Accrual | N26: =IF('GENERAL FUND Estimates'!F24="","",'GENERAL FUND Estimates'!F24) ->  | O26: =IF(N26="","",N26/SUM('Tables & References'!$C$11:$C$16)) ->  | Z26: =IF(Z25=V14,"Agrees with Fees","ERROR: Does Not Agree With Fees") -> Agrees with Fees | AO26: 1276 | AP26: 184 | AQ26: 203 | AR26: 0.1032608696
B27: =IF('RESERVE Cost Estimates'!B28="","",'RESERVE Cost Estimates'!B28) -> 1270 | D27: =IF('RESERVE Cost Estimates'!G28="","",'RESERVE Cost Estimates'!G28) -> 2138 | E27: =IF('RESERVE Cost Estimates'!G28="","",'RESERVE Cost Estimates'!G28/'Tables & References'!C11) -> 267.25 | F27: =IF(E27="","",E27/maintenance_recurrence) -> 267.25 | G27: =IF(F27="","",F27/12) -> 22.27083333 | H27: =IF(F27="","",F27*'Tables & References'!C11) -> 2138 | I27: =IF(H27="","",H27/12) -> 178.1666667 | L27: =IF('GENERAL FUND Estimates'!B29="","",'GENERAL FUND Estimates'!B29) ->  | AO27: 1278 | AP27: 160 | AQ27: 177 | AR27: 0.10625
B28: =IF('RESERVE Cost Estimates'!B29="","",'RESERVE Cost Estimates'!B29) -> 1272 | D28: =IF('RESERVE Cost Estimates'!G29="","",'RESERVE Cost Estimates'!G29) -> 801.75 | E28: =IF('RESERVE Cost Estimates'!G29="","",'RESERVE Cost Estimates'!G29/'Tables & References'!C12) -> 400.875 | F28: 400.875 | G28: 33.40625 | H28: =IF(F28="","",F28*'Tables & References'!C12) -> 801.75 | I28: =IF(H28="","",H28/12) -> 66.8125 | L28: Total | N28: =SUM(N7:N27) -> 15045 | O28: =SUM(O7:O27) -> 940.3125 | P28: =SUM(P7:P27) -> 78.359375 | Q28: =SUM(Q7:Q25) -> 15045 | R28: =SUM(R7:R25) -> 1253.75
B29: =IF('RESERVE Cost Estimates'!B30="","",'RESERVE Cost Estimates'!B30) -> 1274 | D29: =IF('RESERVE Cost Estimates'!G30="","",'RESERVE Cost Estimates'!G30) -> 801.75 | E29: =IF('RESERVE Cost Estimates'!G30="","",'RESERVE Cost Estimates'!G30/'Tables & References'!C13) -> 400.875 | F29: 400.875 | G29: 33.40625 | H29: =IF(F29="","",F29*'Tables & References'!C13) -> 801.75 | I29: 66.8125 | L29: =IF('GENERAL FUND Estimates'!B31="","",'GENERAL FUND Estimates'!B31) ->  | Q29: =IF(Q28='GENERAL FUND Estimates'!F25,"Agrees With Estimate","Error: Does Not Agree With Estimate") -> Agrees With Estimate
B30: =IF('RESERVE Cost Estimates'!B31="","",'RESERVE Cost Estimates'!B31) -> 1276 | D30: =IF('RESERVE Cost Estimates'!G31="","",'RESERVE Cost Estimates'!G31) -> 801.75 | E30: =IF('RESERVE Cost Estimates'!G31="","",'RESERVE Cost Estimates'!G31/'Tables & References'!C14) -> 400.875 | F30: 400.875 | G30: 33.40625 | H30: =IF(F30="","",F30*'Tables & References'!C14) -> 801.75 | I30: 66.8125 | L30: =IF('GENERAL FUND Estimates'!B32="","",'GENERAL FUND Estimates'!B32) -> 
B31: =IF('RESERVE Cost Estimates'!B32="","",'RESERVE Cost Estimates'!B32) -> 1278 | D31: =IF('RESERVE Cost Estimates'!G32="","",'RESERVE Cost Estimates'!G32) -> 213.8 | E31: =IF('RESERVE Cost Estimates'!G32="","",'RESERVE Cost Estimates'!G32/'Tables & References'!C15) -> 106.9 | F31: 106.9 | G31: 8.908333333 | H31: =IF(F31="","",F31*'Tables & References'!C15) -> 213.8 | I31: 17.81666667 | L31: =IF('GENERAL FUND Estimates'!B33="","",'GENERAL FUND Estimates'!B33) -> 
B32: =IF('RESERVE Cost Estimates'!B33="","",'RESERVE Cost Estimates'!B33) ->  | D32: =IF('RESERVE Cost Estimates'!G33="","",'RESERVE Cost Estimates'!G33) ->  | E32: =IF('RESERVE Cost Estimates'!G33="","",'RESERVE Cost Estimates'!G33/'Tables & References'!C16) ->  | H32: =IF(F32="","",F32*'Tables & References'!C16) -> 
G33: Total | H33: =SUM(H27:H32) -> 4757.05 | I33: =SUM(I27:I32) -> 396.4208333 | T33: Monthly General Funds
B34: =IF('RESERVE Cost Estimates'!B35="","",'RESERVE Cost Estimates'!B35) -> Insurance Accrual | T34: =IF('Tables & References'!J11="","",'Tables & References'!J11) -> Business | V34: =SUMIF(M7:M26,T34,P7:P26)*SUM('Tables & References'!C11:C16) -> 49.16666667
B35: =IF('RESERVE Cost Estimates'!B36="","",'RESERVE Cost Estimates'!B36) -> All Units | D35: =IF('RESERVE Cost Estimates'!G36="","",'RESERVE Cost Estimates'!G36) -> 5800 | E35: =IF(D35="","",D35/SUM('Tables & References'!C11:C16)) -> 362.5 | F35: =IF(E35="","",E35)/Insurance_recurrence -> 362.5 | G35: =IF(F35="","",F35/12) -> 30.20833333 | H35: =IF(F35="","",F35*SUM('Tables & References'!C11:C16)) -> 5800 | I35: =IF(H35="","",H35/12) -> 483.3333333 | T35: =IF('Tables & References'!J12="","",'Tables & References'!J12) -> Discretionary | V35: =SUMIF(M7:M26,T35,P7:P26)*SUM('Tables & References'!C11:C16) -> 1137.083333
B36: =IF('RESERVE Cost Estimates'!B37="","",'RESERVE Cost Estimates'!B37) ->  | T36: =IF('Tables & References'!J13="","",'Tables & References'!J13) -> Mandatory | V36: =SUMIF(M7:M26,T36,P7:P26)*SUM('Tables & References'!C11:C16) -> 67.5
B37: =IF('RESERVE Cost Estimates'!B38="","",'RESERVE Cost Estimates'!B38) -> Legal-Professional Fees Accrual | T37: =IF('Tables & References'!J14="","",'Tables & References'!J14) -> Other | V37: =SUMIF(M8:M27,T37,P8:P27)*SUM('Tables & References'!C12:C17) -> 0
B38: =IF('RESERVE Cost Estimates'!B39="","",'RESERVE Cost Estimates'!B39) -> All Units | D38: =IF('RESERVE Cost Estimates'!G39="","",'RESERVE Cost Estimates'!G39) -> 1200 | E38: =IF(D38="","",D38/SUM('Tables & References'!C11:C16)) -> 75 | F38: =IF(E38="","",E38)/Legal_Fees_recurrence -> 75 | G38: =IF(F38="","",F38/12) -> 6.25 | H38: =IF(F38="","",F38*SUM('Tables & References'!C11:C16)) -> 1200 | I38: =IF(H38="","",H38/12) -> 100
T39: Total Monthly General Funds | V39: =SUM(V34:V37) -> 1253.75
G40: Total | H40: =SUM(H13,H16,H25,H33,H35,H38) -> 22653.97145 | I40: =SUM(I13,I16,I25,I33,I35,I38) -> 1887.830954 | AA40: 1270 | AB40: 1272 | AI40: 1274
H41: =IF(H40='RESERVE Cost Estimates'!H43,"Agrees With Estimate","Error: Does Not Agree With Estimate") -> Agrees With Estimate | X41: =CONCATENATE("Previous Fees for"," ",previous_budget_year) -> Previous Fees for 2018 | AA41: 137 | AB41: 187 | AI41: 189
X42: =CONCATENATE("Fees for Current Budget Year of"," ",current_budget_year) -> Fees for Current Budget Year of 2019 | AA42: =V7 -> 183 | AB42: =V8 -> 232 | AI42: =V9 -> 231
X43: Increase | AA43: =(AA42-AA41)/AA41 -> 0.3357664234 | AB43: =(AB42-AB41)/AB41 -> 0.2406417112 | AI43: 0.2222222222
X44: Increase | AA44: =AA42-AA41 -> 46 | AB44: =AB42-AB41 -> 45 | AI44: 42

Sheet Costs by Unit 1270
A1: Hilary Heights Condominium Owners Association
A2: A Cost & Fee Analysis by Unit | D2: for the budget year of | E2: =current_budget_year -> 2019 | F2: Unit | G2: 1270
D3: This Budget was approved by the Board of Directors on: | E3: =Approval_Date -> Sept 8th, 2018
A5: General Fund Expense (Shared by ALL Units) | B5: Total Annual Budgeted Expense | C5: Recurrence in Years | D5: Cost per Year | E5: Cost per Month | F5: No. Units | G5: Cost per Unit per month
A7: ='GENERAL FUND Estimates'!B5 -> Administration Fee | B7: ='GENERAL FUND Estimates'!F5 -> 10 | C7: 1 | D7: =B7/C7 -> 10 | E7: =D7/12 -> 0.8333333333 | F7: =SUM('Tables & References'!$C$11:$C$16) -> 16 | G7: =E7/F7 -> 0.05208333333
A8: ='GENERAL FUND Estimates'!B6 -> Dues and Subscriptions | B8: ='GENERAL FUND Estimates'!F6 -> 170 | C8: 1 | D8: =B8/C8 -> 170 | E8: =D8/12 -> 14.16666667 | F8: =SUM('Tables & References'!$C$11:$C$16) -> 16 | G8: =E8/F8 -> 0.8854166667
A9: ='GENERAL FUND Estimates'!B7 -> 0 | B9: ='GENERAL FUND Estimates'!F7 -> 0 | C9: 1 | D9: 0 | E9: 0 | F9: =SUM('Tables & References'!$C$11:$C$16) -> 16 | G9: 0
A10: ='GENERAL FUND Estimates'!B8 -> Supplies, Business | B10: ='GENERAL FUND Estimates'!F8 -> 300 | C10: 1 | D10: 300 | E10: 25 | F10: =SUM('Tables & References'!$C$11:$C$16) -> 16 | G10: 1.5625
A11: ='GENERAL FUND Estimates'!B9 -> Bank Charge | B11: ='GENERAL FUND Estimates'!F9 -> 10 | C11: 1 | D11: 10 | E11: 0.8333333333 | F11: =SUM('Tables & References'!$C$11:$C$16) -> 16 | G11: 0.05208333333
A12: ='GENERAL FUND Estimates'!B10 -> Business, Other | B12: ='GENERAL FUND Estimates'!F10 -> 100 | C12: 1 | D12: 100 | E12: 8.333333333 | F12: =SUM('Tables & References'!$C$11:$C$16) -> 16 | G12: 0.5208333333
A13: ='GENERAL FUND Estimates'!B11 -> Grounds Improvement | B13: ='GENERAL FUND Estimates'!F11 -> 500 | C13: 1 | D13: 500 | E13: 41.66666667 | F13: =SUM('Tables & References'!$C$11:$C$16) -> 16 | G13: 2.604166667
A14: ='GENERAL FUND Estimates'!B12 -> Landscaping Repayment | B14: ='GENERAL FUND Estimates'!F12 -> 600 | C14: 1 | D14: 600 | E14: 50 | F14: =SUM('Tables & References'!$C$11:$C$16) -> 16 | G14: 3.125
A15: ='GENERAL FUND Estimates'!B13 -> Lawn Care | B15: ='GENERAL FUND Estimates'!F13 -> 7570 | C15: 1 | D15: 7570 | E15: 630.8333333 | F15: =SUM('Tables & References'!$C$11:$C$16) -> 16 | G15: 39.42708333
A16: ='GENERAL FUND Estimates'!B14 -> Snow Removal | B16: ='GENERAL FUND Estimates'!F14 -> 4725 | C16: 1 | D16: 4725 | E16: 393.75 | F16: =SUM('Tables & References'!$C$11:$C$16) -> 16 | G16: 24.609375
A17: ='GENERAL FUND Estimates'!B15 -> Wireless Internet | B17: ='GENERAL FUND Estimates'!F15 -> 0 | C17: 1 | D17: 0 | E17: 0 | F17: =SUM('Tables & References'!$C$11:$C$16) -> 16 | G17: 0
A18: ='GENERAL FUND Estimates'!B16 -> Discretionary, Other | B18: ='GENERAL FUND Estimates'!F16 -> 250 | C18: 1 | D18: 250 | E18: 20.83333333 | F18: =SUM('Tables & References'!$C$11:$C$16) -> 16 | G18: 1.302083333
A19: ='GENERAL FUND Estimates'!B17 -> Electric House Meter 1 | B19: ='GENERAL FUND Estimates'!F17 -> 200 | C19: 1 | D19: 200 | E19: 16.66666667 | F19: =SUM('Tables & References'!$C$11:$C$16) -> 16 | G19: 1.041666667
A20: ='GENERAL FUND Estimates'!B18 -> Electric House Meter 2 | B20: ='GENERAL FUND Estimates'!F18 -> 260 | C20: 1 | D20: 260 | E20: 21.66666667 | F20: =SUM('Tables & References'!$C$11:$C$16) -> 16 | G20: 1.354166667
A21: ='GENERAL FUND Estimates'!B19 -> Water and Sewer | B21: ='GENERAL FUND Estimates'!F19 -> 250 | C21: 1 | D21: 250 | E21: 20.83333333 | F21: =SUM('Tables & References'!$C$11:$C$16) -> 16 | G21: 1.302083333
A22: ='GENERAL FUND Estimates'!B20 -> Mandatory, Other | B22: ='GENERAL FUND Estimates'!F20 -> 100 | C22: 1 | D22: 100 | E22: 8.333333333 | F22: =SUM('Tables & References'!$C$11:$C$16) -> 16 | G22: 0.5208333333
A24: Total Shared General Funds | B24: =SUM(B7:B22) -> 15045 | D24: =SUM(D7:D22) -> 15045 | E24: =SUM(E7:E22) -> 1253.75 | F24: =SUM('Tables & References'!$C$11:$C$16) -> 16 | G24: =SUM(G7:G22) -> 78.359375
A26: Reserve Fund | B26: Total Budgeted Expense | C26: Recurrence in Years | D26: Cost per Year | E26: Cost per Month | F26: No. Units | G26: Cost per Unit per month
A28: =CONCATENATE('RESERVE Cost Estimates'!B7," *") -> Roofing Accrual * | B28: ='RESERVE Cost Estimates'!G8 -> 56801.99289 | C28: =roofing_recurrence_A -> 20 | D28: =B28/C28 -> 2840.099645 | E28: =D28/12 -> 236.6749704 | F28: ='Tables & References'!$C$11 -> 8 | G28: =E28/F28 -> 29.5843713
A29: ='RESERVE Cost Estimates'!B16 -> Road Maintenance Accrual | B29: ='RESERVE Cost Estimates'!G17 -> 6414 | C29: =road_recurrence -> 3 | D29: =B29/C29 -> 2138 | E29: =D29/12 -> 178.1666667 | F29: =SUM('Tables & References'!$C$11:$C$16) -> 16 | G29: =E29/F29 -> 11.13541667
A30: ='RESERVE Cost Estimates'!B19 -> Painting/Power Washing Accrual | B30: ='RESERVE Cost Estimates'!G20 -> 2615 | C30: =painting_recurrence -> 6 | D30: 435.8333333 | E30: 36.31944444 | F30: ='Tables & References'!$C$11 -> 8 | G30: 4.539930556
A31: ='RESERVE Cost Estimates'!B27 -> General Building Maintenance Accrual | B31: ='RESERVE Cost Estimates'!G28 -> 2138 | C31: =maintenance_recurrence -> 1 | D31: 2138 | E31: 178.1666667 | F31: ='Tables & References'!$C$11 -> 8 | G31: 22.27083333
A32: ='RESERVE Cost Estimates'!B35 -> Insurance Accrual | B32: ='RESERVE Cost Estimates'!G36 -> 5800 | C32: =Insurance_recurrence -> 1 | D32: 5800 | E32: 483.3333333 | F32: =SUM('Tables & References'!$C$11:$C$16) -> 16 | G32: 30.20833333
A33: ='RESERVE Cost Estimates'!B38 -> Legal-Professional Fees Accrual | B33: ='RESERVE Cost Estimates'!G39 -> 1200 | C33: =Legal_Fees_recurrence -> 1 | D33: 1200 | E33: 100 | F33: =SUM('Tables & References'!$C$11:$C$16) -> 16 | G33: 6.25
A35: Total Reserve Funds | B35: =SUM(B28:B34) -> 74968.99289 | D35: =SUM(D28:D34) -> 14551.93298 | E35: =SUM(E28:E34) -> 1212.661081 | F35: ='Tables & References'!$C$11 -> 8 | G35: =SUM(G28:G33) -> 103.9888852
A37: Total Monthly Fee (Rounded Up) | G37: =ROUNDUP(SUM(G24,G35),0) -> 183
A39: * The "normal" roofing replacement is calculated based on a "30-year" roof. However, since the accrual fund for this expense was not estabished until several years after the building of 1270, 1272, and 1274, these units are calculated as "20-year" roofs to "catch up" to those years where no monies were accrued.

Sheet Costs by Unit 1272
A1: Hilary Heights Condominium Owners Association
A2: A Cost & Fee Analysis by Unit | D2: for the budget year of | E2: =current_budget_year -> 2019 | F2: Unit | G2: 1272
D3: This Budget was approved by the Board of Directors on: | E3: =Approval_Date -> Sept 8th, 2018
A5: General Fund Expense (Shared by ALL Units) | B5: Total Annual Budgeted Expense | C5: Recurrence in Years | D5: Cost per Year | E5: Cost per Month | F5: No. Units | G5: Cost per Unit per month
A7: ='GENERAL FUND Estimates'!B5 -> Administration Fee | B7: ='GENERAL FUND Estimates'!F5 -> 10 | C7: 1 | D7: =B7/C7 -> 10 | E7: =D7/12 -> 0.8333333333 | F7: =SUM('Tables & References'!$C$11:$C$16) -> 16 | G7: =E7/F7 -> 0.05208333333
A8: ='GENERAL FUND Estimates'!B6 -> Dues and Subscriptions | B8: ='GENERAL FUND Estimates'!F6 -> 170 | C8: 1 | D8: =B8/C8 -> 170 | E8: =D8/12 -> 14.16666667 | F8: =SUM('Tables & References'!$C$11:$C$16) -> 16 | G8: =E8/F8 -> 0.8854166667
A9: ='GENERAL FUND Estimates'!B7 -> 0 | B9: ='GENERAL FUND Estimates'!F7 -> 0 | C9: 1 | D9: 0 | E9: 0 | F9: =SUM('Tables & References'!$C$11:$C$16) -> 16 | G9: 0
A10: ='GENERAL FUND Estimates'!B8 -> Supplies, Business | B10: ='GENERAL FUND Estimates'!F8 -> 300 | C10: 1 | D10: 300 | E10: 25 | F10: =SUM('Tables & References'!$C$11:$C$16) -> 16 | G10: 1.5625
A11: ='GENERAL FUND Estimates'!B9 -> Bank Charge | B11: ='GENERAL FUND Estimates'!F9 -> 10 | C11: 1 | D11: 10 | E11: 0.8333333333 | F11: =SUM('Tables & References'!$C$11:$C$16) -> 16 | G11: 0.05208333333
A12: ='GENERAL FUND Estimates'!B10 -> Business, Other | B12: ='GENERAL FUND Estimates'!F10 -> 100 | C12: 1 | D12: 100 | E12: 8.333333333 | F12: =SUM('Tables & References'!$C$11:$C$16) -> 16 | G12: 0.5208333333
A13: ='GENERAL FUND Estimates'!B11 -> Grounds Improvement | B13: ='GENERAL FUND Estimates'!F11 -> 500 | C13: 1 | D13: 500 | E13: 41.66666667 | F13: =SUM('Tables & References'!$C$11:$C$16) -> 16 | G13: 2.604166667
A14: ='GENERAL FUND Estimates'!B12 -> Landscaping Repayment | B14: ='GENERAL FUND Estimates'!F12 -> 600 | C14: 1 | D14: 600 | E14: 50 | F14: =SUM('Tables & References'!$C$11:$C$16) -> 16 | G14: 3.125
A15: ='GENERAL FUND Estimates'!B13 -> Lawn Care | B15: ='GENERAL FUND Estimates'!F13 -> 7570 | C15: 1 | D15: 7570 | E15: 630.8333333 | F15: =SUM('Tables & References'!$C$11:$C$16) -> 16 | G15: 39.42708333
A16: ='GENERAL FUND Estimates'!B14 -> Snow Removal | B16: ='GENERAL FUND Estimates'!F14 -> 4725 | C16: 1 | D16: 4725 | E16: 393.75 | F16: =SUM('Tables & References'!$C$11:$C$16) -> 16 | G16: 24.609375
A17: ='GENERAL FUND Estimates'!B15 -> Wireless Internet | B17: ='GENERAL FUND Estimates'!F15 -> 0 | C17: 1 | D17: 0 | E17: 0 | F17: =SUM('Tables & References'!$C$11:$C$16) -> 16 | G17: 0
A18: ='GENERAL FUND Estimates'!B16 -> Discretionary, Other | B18: ='GENERAL FUND Estimates'!F16 -> 250 | C18: 1 | D18: 250 | E18: 20.83333333 | F18: =SUM('Tables & References'!$C$11:$C$16) -> 16 | G18: 1.302083333
A19: ='GENERAL FUND Estimates'!B17 -> Electric House Meter 1 | B19: ='GENERAL FUND Estimates'!F17 -> 200 | C19: 1 | D19: 200 | E19: 16.66666667 | F19: =SUM('Tables & References'!$C$11:$C$16) -> 16 | G19: 1.041666667
A20: ='GENERAL FUND Estimates'!B18 -> Electric House Meter 2 | B20: ='GENERAL FUND Estimates'!F18 -> 260 | C20: 1 | D20: 260 | E20: 21.66666667 | F20: =SUM('Tables & References'!$C$11:$C$16) -> 16 | G20: 1.354166667
A21: ='GENERAL FUND Estimates'!B19 -> Water and Sewer | B21: ='GENERAL FUND Estimates'!F19 -> 250 | C21: 1 | D21: 250 | E21: 20.83333333 | F21: =SUM('Tables & References'!$C$11:$C$16) -> 16 | G21: 1.302083333
A22: ='GENERAL FUND Estimates'!B20 -> Mandatory, Other | B22: ='GENERAL FUND Estimates'!F20 -> 100 | C22: 1 | D22: 100 | E22: 8.333333333 | F22: =SUM('Tables & References'!$C$11:$C$16) -> 16 | G22: 0.5208333333
A24: Total Shared General Funds | B24: =SUM(B7:B22) -> 15045 | D24: =SUM(D7:D22) -> 15045 | E24: =SUM(E7:E22) -> 1253.75 | F24: =SUM('Tables & References'!$C$11:$C$16) -> 16 | G24: =SUM(G7:G22) -> 78.359375
A26: Reserve Fund | B26: Total Budgeted Expense | C26: Recurrence in Years | D26: Cost per Year | E26: Cost per Month | F26: No. Units | G26: Cost per Unit per month
A28: =CONCATENATE('RESERVE Cost Estimates'!B7," *") -> Roofing Accrual * | B28: ='RESERVE Cost Estimates'!G9 -> 28359.3361 | C28: =roofing_recurrence_A -> 20 | D28: =B28/C28 -> 1417.966805 | E28: =D28/12 -> 118.1639004 | F28: ='Tables & References'!C12 -> 2 | G28: =E28/F28 -> 59.0819502
A29: ='RESERVE Cost Estimates'!B16 -> Road Maintenance Accrual | B29: ='RESERVE Cost Estimates'!G17 -> 6414 | C29: =road_recurrence -> 3 | D29: =B29/C29 -> 2138 | E29: =D29/12 -> 178.1666667 | F29: =SUM('Tables & References'!$C$11:$C$16) -> 16 | G29: =E29/F29 -> 11.13541667
A30: ='RESERVE Cost Estimates'!B19 -> Painting/Power Washing Accrual | B30: ='RESERVE Cost Estimates'!G21 -> 1817.3 | C30: =painting_recurrence -> 6 | D30: 302.8833333 | E30: 25.24027778 | F30: ='Tables & References'!C12 -> 2 | G30: 12.62013889
A31: ='RESERVE Cost Estimates'!B27 -> General Building Maintenance Accrual | B31: ='RESERVE Cost Estimates'!G29 -> 801.75 | C31: =maintenance_recurrence -> 1 | D31: 801.75 | E31: 66.8125 | F31: ='Tables & References'!C12 -> 2 | G31: 33.40625
A32: ='RESERVE Cost Estimates'!B35 -> Insurance Accrual | B32: ='RESERVE Cost Estimates'!G36 -> 5800 | C32: =Insurance_recurrence -> 1 | D32: 5800 | E32: 483.3333333 | F32: =SUM('Tables & References'!$C$11:$C$16) -> 16 | G32: 30.20833333
A33: ='RESERVE Cost Estimates'!B38 -> Legal-Professional Fees Accrual | B33: ='RESERVE Cost Estimates'!G39 -> 1200 | C33: =Legal_Fees_recurrence -> 1 | D33: 1200 | E33: 100 | F33: =SUM('Tables & References'!$C$11:$C$16) -> 16 | G33: 6.25
A35: Total Reserve Funds | B35: =SUM(B28:B34) -> 44392.3861 | D35: =SUM(D28:D34) -> 11660.60014 | E35: =SUM(E28:E34) -> 971.7166782 | F35: ='Tables & References'!$C$11 -> 8 | G35: =SUM(G28:G33) -> 152.7020891
A37: Total Monthly Fee (Rounded Up) | G37: =ROUNDUP(SUM(G24,G35),0) -> 232
A39: * The "normal" roofing replacement is calculated based on a "30-year" roof. However, since the accrual fund for this expense was not estabished until several years after the building of 1270, 1272, and 1274, these units are calculated as "20-year" roofs to "catch up" to those years where no monies were accrued.

Sheet Costs by Unit 1274
A1: Hilary Heights Condominium Owners Association
A2: A Cost & Fee Analysis by Unit | D2: for the budget year of | E2: =current_budget_year -> 2019 | F2: Unit | G2: 1274
D3: This Budget was approved by the Board of Directors on: | E3: =Approval_Date -> Sept 8th, 2018
A5: General Fund Expense (Shared by ALL Units) | B5: Total Annual Budgeted Expense | C5: Recurrence in Years | D5: Cost per Year | E5: Cost per Month | F5: No. Units | G5: Cost per Unit per month
A7: ='GENERAL FUND Estimates'!B5 -> Administration Fee | B7: ='GENERAL FUND Estimates'!F5 -> 10 | C7: 1 | D7: =B7/C7 -> 10 | E7: =D7/12 -> 0.8333333333 | F7: =SUM('Tables & References'!$C$11:$C$16) -> 16 | G7: =E7/F7 -> 0.05208333333
A8: ='GENERAL FUND Estimates'!B6 -> Dues and Subscriptions | B8: ='GENERAL FUND Estimates'!F6 -> 170 | C8: 1 | D8: =B8/C8 -> 170 | E8: =D8/12 -> 14.16666667 | F8: =SUM('Tables & References'!$C$11:$C$16) -> 16 | G8: =E8/F8 -> 0.8854166667
A9: ='GENERAL FUND Estimates'!B7 -> 0 | B9: ='GENERAL FUND Estimates'!F7 -> 0 | C9: 1 | D9: 0 | E9: 0 | F9: =SUM('Tables & References'!$C$11:$C$16) -> 16 | G9: 0
A10: ='GENERAL FUND Estimates'!B8 -> Supplies, Business | B10: ='GENERAL FUND Estimates'!F8 -> 300 | C10: 1 | D10: 300 | E10: 25 | F10: =SUM('Tables & References'!$C$11:$C$16) -> 16 | G10: 1.5625
A11: ='GENERAL FUND Estimates'!B9 -> Bank Charge | B11: ='GENERAL FUND Estimates'!F9 -> 10 | C11: 1 | D11: 10 | E11: 0.8333333333 | F11: =SUM('Tables & References'!$C$11:$C$16) -> 16 | G11: 0.05208333333
A12: ='GENERAL FUND Estimates'!B10 -> Business, Other | B12: ='GENERAL FUND Estimates'!F10 -> 100 | C12: 1 | D12: 100 | E12: 8.333333333 | F12: =SUM('Tables & References'!$C$11:$C$16) -> 16 | G12: 0.5208333333
A13: ='GENERAL FUND Estimates'!B11 -> Grounds Improvement | B13: ='GENERAL FUND Estimates'!F11 -> 500 | C13: 1 | D13: 500 | E13: 41.66666667 | F13: =SUM('Tables & References'!$C$11:$C$16) -> 16 | G13: 2.604166667
A14: ='GENERAL FUND Estimates'!B12 -> Landscaping Repayment | B14: ='GENERAL FUND Estimates'!F12 -> 600 | C14: 1 | D14: 600 | E14: 50 | F14: =SUM('Tables & References'!$C$11:$C$16) -> 16 | G14: 3.125
A15: ='GENERAL FUND Estimates'!B13 -> Lawn Care | B15: ='GENERAL FUND Estimates'!F13 -> 7570 | C15: 1 | D15: 7570 | E15: 630.8333333 | F15: =SUM('Tables & References'!$C$11:$C$16) -> 16 | G15: 39.42708333
A16: ='GENERAL FUND Estimates'!B14 -> Snow Removal | B16: ='GENERAL FUND Estimates'!F14 -> 4725 | C16: 1 | D16: 4725 | E16: 393.75 | F16: =SUM('Tables & References'!$C$11:$C$16) -> 16 | G16: 24.609375
A17: ='GENERAL FUND Estimates'!B15 -> Wireless Internet | B17: ='GENERAL FUND Estimates'!F15 -> 0 | C17: 1 | D17: 0 | E17: 0 | F17: =SUM('Tables & References'!$C$11:$C$16) -> 16 | G17: 0
A18: ='GENERAL FUND Estimates'!B16 -> Discretionary, Other | B18: ='GENERAL FUND Estimates'!F16 -> 250 | C18: 1 | D18: 250 | E18: 20.83333333 | F18: =SUM('Tables & References'!$C$11:$C$16) -> 16 | G18: 1.302083333
A19: ='GENERAL FUND Estimates'!B17 -> Electric House Meter 1 | B19: ='GENERAL FUND Estimates'!F17 -> 200 | C19: 1 | D19: 200 | E19: 16.66666667 | F19: =SUM('Tables & References'!$C$11:$C$16) -> 16 | G19: 1.041666667
A20: ='GENERAL FUND Estimates'!B18 -> Electric House Meter 2 | B20: ='GENERAL FUND Estimates'!F18 -> 260 | C20: 1 | D20: 260 | E20: 21.66666667 | F20: =SUM('Tables & References'!$C$11:$C$16) -> 16 | G20: 1.354166667
A21: ='GENERAL FUND Estimates'!B19 -> Water and Sewer | B21: ='GENERAL FUND Estimates'!F19 -> 250 | C21: 1 | D21: 250 | E21: 20.83333333 | F21: =SUM('Tables & References'!$C$11:$C$16) -> 16 | G21: 1.302083333
A22: ='GENERAL FUND Estimates'!B20 -> Mandatory, Other | B22: ='GENERAL FUND Estimates'!F20 -> 100 | C22: 1 | D22: 100 | E22: 8.333333333 | F22: =SUM('Tables & References'!$C$11:$C$16) -> 16 | G22: 0.5208333333
A24: Total Shared General Funds | B24: =SUM(B7:B22) -> 15045 | D24: =SUM(D7:D22) -> 15045 | E24: =SUM(E7:E22) -> 1253.75 | F24: =SUM('Tables & References'!$C$11:$C$16) -> 16 | G24: =SUM(G7:G22) -> 78.359375
A26: Reserve Fund | B26: Total Budgeted Expense | C26: Recurrence in Years | D26: Cost per Year | E26: Cost per Month | F26: No. Units | G26: Cost per Unit per month
A28: =CONCATENATE('RESERVE Cost Estimates'!B7," *") -> Roofing Accrual * | B28: ='RESERVE Cost Estimates'!G10 -> 30621.2 | C28: =roofing_recurrence_A -> 20 | D28: =B28/C28 -> 1531.06 | E28: =D28/12 -> 127.5883333 | F28: ='Tables & References'!C13 -> 2 | G28: =E28/F28 -> 63.79416667
A29: ='RESERVE Cost Estimates'!B16 -> Road Maintenance Accrual | B29: ='RESERVE Cost Estimates'!G17 -> 6414 | C29: =road_recurrence -> 3 | D29: =B29/C29 -> 2138 | E29: =D29/12 -> 178.1666667 | F29: =SUM('Tables & References'!$C$11:$C$16) -> 16 | G29: =E29/F29 -> 11.13541667
A30: ='RESERVE Cost Estimates'!B19 -> Painting/Power Washing Accrual | B30: ='RESERVE Cost Estimates'!G22 -> 1069 | C30: =painting_recurrence -> 6 | D30: 178.1666667 | E30: 14.84722222 | F30: ='Tables & References'!C13 -> 2 | G30: 7.423611111
A31: ='RESERVE Cost Estimates'!B27 -> General Building Maintenance Accrual | B31: ='RESERVE Cost Estimates'!G30 -> 801.75 | C31: =maintenance_recurrence -> 1 | D31: 801.75 | E31: 66.8125 | F31: ='Tables & References'!C13 -> 2 | G31: 33.40625
A32: ='RESERVE Cost Estimates'!B35 -> Insurance Accrual | B32: ='RESERVE Cost Estimates'!G36 -> 5800 | C32: =Insurance_recurrence -> 1 | D32: 5800 | E32: 483.3333333 | F32: =SUM('Tables & References'!$C$11:$C$16) -> 16 | G32: 30.20833333
A33: ='RESERVE Cost Estimates'!B38 -> Legal-Professional Fees Accrual | B33: ='RESERVE Cost Estimates'!G39 -> 1200 | C33: =Legal_Fees_recurrence -> 1 | D33: 1200 | E33: 100 | F33: =SUM('Tables & References'!$C$11:$C$16) -> 16 | G33: 6.25
A35: Total Reserve Funds | B35: =SUM(B28:B34) -> 45905.95 | D35: =SUM(D28:D34) -> 11648.97667 | E35: =SUM(E28:E34) -> 970.7480556 | F35: ='Tables & References'!$C$11 -> 8 | G35: =SUM(G28:G33) -> 152.2177778
A37: Total Monthly Fee (Rounded Up) | G37: =ROUNDUP(SUM(G24,G35),0) -> 231
A39: * The "normal" roofing replacement is calculated based on a "30-year" roof. However, since the accrual fund for this expense was not estabished until several years after the building of 1270, 1272, and 1274, these units are calculated as "20-year" roofs to "catch up" to those years where no monies were accrued.

Sheet Costs by Unit 1276
A1: Hilary Heights Condominium Owners Association
A2: A Cost & Fee Analysis by Unit | D2: for the budget year of | E2: =current_budget_year -> 2019 | F2: Unit | G2: 1276
D3: This Budget was approved by the Board of Directors on: | E3: =Approval_Date -> Sept 8th, 2018
A5: General Fund Expense (Shared by ALL Units) | B5: Total Annual Budgeted Expense | C5: Recurrence in Years | D5: Cost per Year | E5: Cost per Month | F5: No. Units | G5: Cost per Unit per month
A7: ='GENERAL FUND Estimates'!B5 -> Administration Fee | B7: ='GENERAL FUND Estimates'!F5 -> 10 | C7: 1 | D7: =B7/C7 -> 10 | E7: =D7/12 -> 0.8333333333 | F7: =SUM('Tables & References'!$C$11:$C$16) -> 16 | G7: =E7/F7 -> 0.05208333333
A8: ='GENERAL FUND Estimates'!B6 -> Dues and Subscriptions | B8: ='GENERAL FUND Estimates'!F6 -> 170 | C8: 1 | D8: =B8/C8 -> 170 | E8: =D8/12 -> 14.16666667 | F8: =SUM('Tables & References'!$C$11:$C$16) -> 16 | G8: =E8/F8 -> 0.8854166667
A9: ='GENERAL FUND Estimates'!B7 -> 0 | B9: ='GENERAL FUND Estimates'!F7 -> 0 | C9: 1 | D9: 0 | E9: 0 | F9: =SUM('Tables & References'!$C$11:$C$16) -> 16 | G9: 0
A10: ='GENERAL FUND Estimates'!B8 -> Supplies, Business | B10: ='GENERAL FUND Estimates'!F8 -> 300 | C10: 1 | D10: 300 | E10: 25 | F10: =SUM('Tables & References'!$C$11:$C$16) -> 16 | G10: 1.5625
A11: ='GENERAL FUND Estimates'!B9 -> Bank Charge | B11: ='GENERAL FUND Estimates'!F9 -> 10 | C11: 1 | D11: 10 | E11: 0.8333333333 | F11: =SUM('Tables & References'!$C$11:$C$16) -> 16 | G11: 0.05208333333
A12: ='GENERAL FUND Estimates'!B10 -> Business, Other | B12: ='GENERAL FUND Estimates'!F10 -> 100 | C12: 1 | D12: 100 | E12: 8.333333333 | F12: =SUM('Tables & References'!$C$11:$C$16) -> 16 | G12: 0.5208333333
A13: ='GENERAL FUND Estimates'!B11 -> Grounds Improvement | B13: ='GENERAL FUND Estimates'!F11 -> 500 | C13: 1 | D13: 500 | E13: 41.66666667 | F13: =SUM('Tables & References'!$C$11:$C$16) -> 16 | G13: 2.604166667
A14: ='GENERAL FUND Estimates'!B12 -> Landscaping Repayment | B14: ='GENERAL FUND Estimates'!F12 -> 600 | C14: 1 | D14: 600 | E14: 50 | F14: =SUM('Tables & References'!$C$11:$C$16) -> 16 | G14: 3.125
A15: ='GENERAL FUND Estimates'!B13 -> Lawn Care | B15: ='GENERAL FUND Estimates'!F13 -> 7570 | C15: 1 | D15: 7570 | E15: 630.8333333 | F15: =SUM('Tables & References'!$C$11:$C$16) -> 16 | G15: 39.42708333
A16: ='GENERAL FUND Estimates'!B14 -> Snow Removal | B16: ='GENERAL FUND Estimates'!F14 -> 4725 | C16: 1 | D16: 4725 | E16: 393.75 | F16: =SUM('Tables & References'!$C$11:$C$16) -> 16 | G16: 24.609375
A17: ='GENERAL FUND Estimates'!B15 -> Wireless Internet | B17: ='GENERAL FUND Estimates'!F15 -> 0 | C17: 1 | D17: 0 | E17: 0 | F17: =SUM('Tables & References'!$C$11:$C$16) -> 16 | G17: 0
A18: ='GENERAL FUND Estimates'!B16 -> Discretionary, Other | B18: ='GENERAL FUND Estimates'!F16 -> 250 | C18: 1 | D18: 250 | E18: 20.83333333 | F18: =SUM('Tables & References'!$C$11:$C$16) -> 16 | G18: 1.302083333
A19: ='GENERAL FUND Estimates'!B17 -> Electric House Meter 1 | B19: ='GENERAL FUND Estimates'!F17 -> 200 | C19: 1 | D19: 200 | E19: 16.66666667 | F19: =SUM('Tables & References'!$C$11:$C$16) -> 16 | G19: 1.041666667
A20: ='GENERAL FUND Estimates'!B18 -> Electric House Meter 2 | B20: ='GENERAL FUND Estimates'!F18 -> 260 | C20: 1 | D20: 260 | E20: 21.66666667 | F20: =SUM('Tables & References'!$C$11:$C$16) -> 16 | G20: 1.354166667
A21: ='GENERAL FUND Estimates'!B19 -> Water and Sewer | B21: ='GENERAL FUND Estimates'!F19 -> 250 | C21: 1 | D21: 250 | E21: 20.83333333 | F21: =SUM('Tables & References'!$C$11:$C$16) -> 16 | G21: 1.302083333
A22: ='GENERAL FUND Estimates'!B20 -> Mandatory, Other | B22: ='GENERAL FUND Estimates'!F20 -> 100 | C22: 1 | D22: 100 | E22: 8.333333333 | F22: =SUM('Tables & References'!$C$11:$C$16) -> 16 | G22: 0.5208333333
A24: Total Shared General Funds | B24: =SUM(B7:B22) -> 15045 | D24: =SUM(D7:D22) -> 15045 | E24: =SUM(E7:E22) -> 1253.75 | F24: =SUM('Tables & References'!$C$11:$C$16) -> 16 | G24: =SUM(G7:G22) -> 78.359375
A26: Reserve Fund | B26: Total Budgeted Expense | C26: Recurrence in Years | D26: Cost per Year | E26: Cost per Month | F26: No. Units | G26: Cost per Unit per month
A28: =CONCATENATE('RESERVE Cost Estimates'!B7," *") -> Roofing Accrual * | B28: ='RESERVE Cost Estimates'!G11 -> 27052.175 | C28: =roofing_recurrence_B -> 30 | D28: =B28/C28 -> 901.7391667 | E28: =D28/12 -> 75.14493056 | F28: ='Tables & References'!C14 -> 2 | G28: =E28/F28 -> 37.57246528
A29: ='RESERVE Cost Estimates'!B16 -> Road Maintenance Accrual | B29: ='RESERVE Cost Estimates'!G17 -> 6414 | C29: =road_recurrence -> 3 | D29: =B29/C29 -> 2138 | E29: =D29/12 -> 178.1666667 | F29: =SUM('Tables & References'!$C$11:$C$16) -> 16 | G29: =E29/F29 -> 11.13541667
A30: ='RESERVE Cost Estimates'!B19 -> Painting/Power Washing Accrual | B30: ='RESERVE Cost Estimates'!G23 -> 855.2 | C30: =painting_recurrence -> 6 | D30: 142.5333333 | E30: 11.87777778 | F30: ='Tables & References'!C14 -> 2 | G30: 5.938888889
A31: ='RESERVE Cost Estimates'!B27 -> General Building Maintenance Accrual | B31: ='RESERVE Cost Estimates'!G31 -> 801.75 | C31: =maintenance_recurrence -> 1 | D31: 801.75 | E31: 66.8125 | F31: ='Tables & References'!$C$14 -> 2 | G31: 33.40625
A32: ='RESERVE Cost Estimates'!B35 -> Insurance Accrual | B32: ='RESERVE Cost Estimates'!G36 -> 5800 | C32: =Insurance_recurrence -> 1 | D32: 5800 | E32: 483.3333333 | F32: =SUM('Tables & References'!$C$11:$C$16) -> 16 | G32: 30.20833333
A33: ='RESERVE Cost Estimates'!B38 -> Legal-Professional Fees Accrual | B33: ='RESERVE Cost Estimates'!G39 -> 1200 | C33: =Legal_Fees_recurrence -> 1 | D33: 1200 | E33: 100 | F33: =SUM('Tables & References'!$C$11:$C$16) -> 16 | G33: 6.25
A35: Total Reserve Funds | B35: =SUM(B28:B34) -> 42123.125 | D35: =SUM(D28:D34) -> 10984.0225 | E35: =SUM(E28:E34) -> 915.3352083 | F35: ='Tables & References'!$C$11 -> 8 | G35: =SUM(G28:G33) -> 124.5113542
A37: Total Monthly Fee (Rounded Up) | G37: =ROUNDUP(SUM(G24,G35),0) -> 203
A39: * The "normal" roofing replacement is calculated based on a "30-year" roof. However, since the accrual fund for this expense was not estabished until several years after the building of 1270, 1272, and 1274, these units are calculated as "20-year" roofs to "catch up" to those years where no monies were accrued.

Sheet Costs by Unit 1278
A1: Hilary Heights Condominium Owners Association
A2: A Cost & Fee Analysis by Unit | D2: for the budget year of | E2: =current_budget_year -> 2019 | F2: Unit | G2: 1278
D3: This Budget was approved by the Board of Directors on: | E3: =Approval_Date -> Sept 8th, 2018
A5: General Fund Expense (Shared by ALL Units) | B5: Total Annual Budgeted Expense | C5: Recurrence in Years | D5: Cost per Year | E5: Cost per Month | F5: No. Units | G5: Cost per Unit per month
A7: ='GENERAL FUND Estimates'!B5 -> Administration Fee | B7: ='GENERAL FUND Estimates'!F5 -> 10 | C7: 1 | D7: =B7/C7 -> 10 | E7: =D7/12 -> 0.8333333333 | F7: =SUM('Tables & References'!$C$11:$C$16) -> 16 | G7: =E7/F7 -> 0.05208333333
A8: ='GENERAL FUND Estimates'!B6 -> Dues and Subscriptions | B8: ='GENERAL FUND Estimates'!F6 -> 170 | C8: 1 | D8: =B8/C8 -> 170 | E8: =D8/12 -> 14.16666667 | F8: =SUM('Tables & References'!$C$11:$C$16) -> 16 | G8: =E8/F8 -> 0.8854166667
A9: ='GENERAL FUND Estimates'!B7 -> 0 | B9: ='GENERAL FUND Estimates'!F7 -> 0 | C9: 1 | D9: 0 | E9: 0 | F9: =SUM('Tables & References'!$C$11:$C$16) -> 16 | G9: 0
A10: ='GENERAL FUND Estimates'!B8 -> Supplies, Business | B10: ='GENERAL FUND Estimates'!F8 -> 300 | C10: 1 | D10: 300 | E10: 25 | F10: =SUM('Tables & References'!$C$11:$C$16) -> 16 | G10: 1.5625
A11: ='GENERAL FUND Estimates'!B9 -> Bank Charge | B11: ='GENERAL FUND Estimates'!F9 -> 10 | C11: 1 | D11: 10 | E11: 0.8333333333 | F11: =SUM('Tables & References'!$C$11:$C$16) -> 16 | G11: 0.05208333333
A12: ='GENERAL FUND Estimates'!B10 -> Business, Other | B12: ='GENERAL FUND Estimates'!F10 -> 100 | C12: 1 | D12: 100 | E12: 8.333333333 | F12: =SUM('Tables & References'!$C$11:$C$16) -> 16 | G12: 0.5208333333
A13: ='GENERAL FUND Estimates'!B11 -> Grounds Improvement | B13: ='GENERAL FUND Estimates'!F11 -> 500 | C13: 1 | D13: 500 | E13: 41.66666667 | F13: =SUM('Tables & References'!$C$11:$C$16) -> 16 | G13: 2.604166667
A14: ='GENERAL FUND Estimates'!B12 -> Landscaping Repayment | B14: ='GENERAL FUND Estimates'!F12 -> 600 | C14: 1 | D14: 600 | E14: 50 | F14: =SUM('Tables & References'!$C$11:$C$16) -> 16 | G14: 3.125
A15: ='GENERAL FUND Estimates'!B13 -> Lawn Care | B15: ='GENERAL FUND Estimates'!F13 -> 7570 | C15: 1 | D15: 7570 | E15: 630.8333333 | F15: =SUM('Tables & References'!$C$11:$C$16) -> 16 | G15: 39.42708333
A16: ='GENERAL FUND Estimates'!B14 -> Snow Removal | B16: ='GENERAL FUND Estimates'!F14 -> 4725 | C16: 1 | D16: 4725 | E16: 393.75 | F16: =SUM('Tables & References'!$C$11:$C$16) -> 16 | G16: 24.609375
A17: ='GENERAL FUND Estimates'!B15 -> Wireless Internet | B17: ='GENERAL FUND Estimates'!F15 -> 0 | C17: 1 | D17: 0 | E17: 0 | F17: =SUM('Tables & References'!$C$11:$C$16) -> 16 | G17: 0
A18: ='GENERAL FUND Estimates'!B16 -> Discretionary, Other | B18: ='GENERAL FUND Estimates'!F16 -> 250 | C18: 1 | D18: 250 | E18: 20.83333333 | F18: =SUM('Tables & References'!$C$11:$C$16) -> 16 | G18: 1.302083333
A19: ='GENERAL FUND Estimates'!B17 -> Electric House Meter 1 | B19: ='GENERAL FUND Estimates'!F17 -> 200 | C19: 1 | D19: 200 | E19: 16.66666667 | F19: =SUM('Tables & References'!$C$11:$C$16) -> 16 | G19: 1.041666667
A20: ='GENERAL FUND Estimates'!B18 -> Electric House Meter 2 | B20: ='GENERAL FUND Estimates'!F18 -> 260 | C20: 1 | D20: 260 | E20: 21.66666667 | F20: =SUM('Tables & References'!$C$11:$C$16) -> 16 | G20: 1.354166667
A21: ='GENERAL FUND Estimates'!B19 -> Water and Sewer | B21: ='GENERAL FUND Estimates'!F19 -> 250 | C21: 1 | D21: 250 | E21: 20.83333333 | F21: =SUM('Tables & References'!$C$11:$C$16) -> 16 | G21: 1.302083333
A22: ='GENERAL FUND Estimates'!B20 -> Mandatory, Other | B22: ='GENERAL FUND Estimates'!F20 -> 100 | C22: 1 | D22: 100 | E22: 8.333333333 | F22: =SUM('Tables & References'!$C$11:$C$16) -> 16 | G22: 0.5208333333
A24: Total Shared General Funds | B24: =SUM(B7:B22) -> 15045 | D24: =SUM(D7:D22) -> 15045 | E24: =SUM(E7:E22) -> 1253.75 | F24: =SUM('Tables & References'!$C$11:$C$16) -> 16 | G24: =(SUM(G7:G22)) -> 78.359375
A26: Reserve Fund | B26: Total Budgeted Expense | C26: Recurrence in Years | D26: Cost per Year | E26: Cost per Month | F26: No. Units | G26: Cost per Unit per month
A28: =CONCATENATE('RESERVE Cost Estimates'!B7," *") -> Roofing Accrual * | B28: ='RESERVE Cost Estimates'!G12 -> 27052.175 | C28: =roofing_recurrence_c -> 30 | D28: =B28/C28 -> 901.7391667 | E28: =D28/12 -> 75.14493056 | F28: ='Tables & References'!C15 -> 2 | G28: =E28/F28 -> 37.57246528
A29: ='RESERVE Cost Estimates'!B16 -> Road Maintenance Accrual | B29: ='RESERVE Cost Estimates'!G17 -> 6414 | C29: =road_recurrence -> 3 | D29: =B29/C29 -> 2138 | E29: =D29/12 -> 178.1666667 | F29: =SUM('Tables & References'!$C$11:$C$16) -> 16 | G29: =E29/F29 -> 11.13541667
A30: ='RESERVE Cost Estimates'!B19 -> Painting/Power Washing Accrual | B30: ='RESERVE Cost Estimates'!G24 -> 641.4 | C30: =painting_recurrence -> 6 | D30: 106.9 | E30: 8.908333333 | F30: ='Tables & References'!C15 -> 2 | G30: 4.454166667
A31: ='RESERVE Cost Estimates'!B27 -> General Building Maintenance Accrual | B31: ='RESERVE Cost Estimates'!G32 -> 213.8 | C31: =maintenance_recurrence -> 1 | D31: 213.8 | E31: 17.81666667 | F31: ='Tables & References'!C15 -> 2 | G31: 8.908333333
A32: ='RESERVE Cost Estimates'!B35 -> Insurance Accrual | B32: ='RESERVE Cost Estimates'!G36 -> 5800 | C32: =Insurance_recurrence -> 1 | D32: 5800 | E32: 483.3333333 | F32: =SUM('Tables & References'!$C$11:$C$16) -> 16 | G32: 30.20833333
A33: ='RESERVE Cost Estimates'!B38 -> Legal-Professional Fees Accrual | B33: ='RESERVE Cost Estimates'!G39 -> 1200 | C33: =Legal_Fees_recurrence -> 1 | D33: 1200 | E33: 100 | F33: =SUM('Tables & References'!$C$11:$C$16) -> 16 | G33: 6.25
A35: Total Reserve Funds | B35: =SUM(B28:B34) -> 41321.375 | D35: =SUM(D28:D34) -> 10360.43917 | E35: =SUM(E28:E34) -> 863.3699306 | F35: ='Tables & References'!$C$11 -> 8 | G35: =(SUM(G28:G33)) -> 98.52871528
A37: Total Monthly Fee (Rounded Up) | G37: =ROUNDUP(SUM(G24,G35),0) -> 177
A39: * The "normal" roofing replacement is calculated based on a "30-year" roof. However, since the accrual fund for this expense was not estabished until several years after the building of 1270, 1272, and 1274, these units are calculated as "20-year" roofs to "catch up" to those years where no monies were accrued.

Sheet Calculated Budget Report
B1: CONDOMINIUM OWNERS' ASSOCIATION
B3: =CONCATENATE("Annual Operating Budget for the Year of"," ",current_budget_year) -> Annual Operating Budget for the Year of 2019
B4: Category/Account | C4: Month | D4: Year
B6: GENERAL FUND (Checking - Cleveland State Bank)
B8: Income
B9: Business Income | F9: Year Check
B10: Association Dues
B11: =CONCATENATE("Building"," ",Calculations!T7," ","(Dues per Unit @"," ","$",ROUNDUP(Calculations!U7,0),")") -> Building 1270 (Dues per Unit @ $183) | C11: =Calculations!Y7 -> 1464 | D11: =Calculations!Z7 -> 17568 | F11: =C11*12 -> 17568 | G11: =IF(F11=D11,"OK","ERROR") -> OK
B12: =CONCATENATE("Building"," ",Calculations!T8," ","(Dues per Unit @"," ","$",ROUNDUP(Calculations!U8,0),")") -> Building 1272 (Dues per Unit @ $232) | C12: =Calculations!Y8 -> 464 | D12: =Calculations!Z8 -> 5568 | F12: =C12*12 -> 5568 | G12: =IF(F12=D12,"OK","ERROR") -> OK
B13: =CONCATENATE("Building"," ",Calculations!T9," ","(Dues per Unit @"," ","$",ROUNDUP(Calculations!U9,0),")") -> Building 1274 (Dues per Unit @ $231) | C13: =Calculations!Y9 -> 462 | D13: =Calculations!Z9 -> 5544 | F13: 5544 | G13: OK
B14: =CONCATENATE("Building"," ",Calculations!T10," ","(Dues per Unit @"," ","$",ROUNDUP(Calculations!U10,0),")") -> Building 1276 (Dues per Unit @ $203) | C14: =Calculations!Y10 -> 406 | D14: =Calculations!Z10 -> 4872 | F14: 4872 | G14: OK
B15: =CONCATENATE("Building"," ",Calculations!T11," ","(Dues per Unit @"," ","$",ROUNDUP(Calculations!U11,0),")") -> Building 1278 (Dues per Unit @ $177) | C15: =Calculations!Y11 -> 354 | D15: =Calculations!Z11 -> 4248 | F15: 4248 | G15: OK
C16: =Calculations!Y12 ->  | D16: =Calculations!Z12 -> 
F17: 0 | G17: OK
B18: Total Income | C18: =SUM(C11:C17) -> 3150 | D18: =SUM(D11:D17) -> 37800 | F18: 37800 | G18: OK
F19: 0 | G19: OK
B20: Expenses | F20: 0 | G20: OK
F21: 0 | G21: OK
B22: Business Expense | F22: 0 | G22: OK
B23: =Calculations!L7 -> Administration Fee | C23: =Calculations!R7 -> 0.8333333333 | D23: =Calculations!Q7 -> 10 | F23: 10 | G23: OK
B24: =Calculations!L8 -> Dues and Subscriptions | C24: =Calculations!R8 -> 14.16666667 | D24: =Calculations!Q8 -> 170 | F24: 170 | G24: OK
B25: =Calculations!L9 ->  | C25: =Calculations!R9 ->  | D25: =Calculations!Q9 ->  | G25: OK
B26: =Calculations!L10 -> Supplies, Business | C26: =Calculations!R10 -> 25 | D26: =Calculations!Q10 -> 300 | F26: 300 | G26: OK
B27: =Calculations!L11 -> Bank Charge | C27: =Calculations!R11 -> 0.8333333333 | D27: =Calculations!Q11 -> 10 | F27: 10 | G27: OK
B28: =Calculations!L12 -> Business, Other | C28: =Calculations!R12 -> 8.333333333 | D28: =Calculations!Q12 -> 100 | F28: 100 | G28: OK
B29: Sub-Total Business Expenses | C29: =SUM(C23:C28) -> 49.16666667 | D29: =SUM(D23:D28) -> 590 | F29: 590 | G29: OK
F30: 0 | G30: OK
B31: Discretionary | F31: 0 | G31: OK
B32: =Calculations!L13 -> Grounds Improvement | C32: =Calculations!R13 -> 41.66666667 | D32: =Calculations!Q13 -> 500 | F32: 500 | G32: OK
B33: =Calculations!L14 -> Landscaping Repayment | C33: =Calculations!R14 -> 50 | D33: =Calculations!Q14 -> 600 | F33: 600 | G33: OK
B34: =Calculations!L15 -> Lawn Care | C34: =Calculations!R15 -> 630.8333333 | D34: =Calculations!Q15 -> 7570 | F34: 7570 | G34: OK
B35: =Calculations!L16 -> Snow Removal | C35: =Calculations!R16 -> 393.75 | D35: =Calculations!Q16 -> 4725 | F35: 4725 | G35: OK
B36: =Calculations!L17 -> Wireless Internet | C36: =Calculations!R17 -> 0 | D36: =Calculations!Q17 -> 0 | F36: 0 | G36: OK
B37: =Calculations!L18 -> Discretionary, Other | C37: =Calculations!R18 -> 20.83333333 | D37: =Calculations!Q18 -> 250 | F37: 250 | G37: OK
B38: Sub-Total Discretionary Expenses | C38: =SUM(C32:C37) -> 1137.083333 | D38: =SUM(D32:D37) -> 13645 | F38: =C41*12 -> 200 | G38: =IF(F38=D41,"OK","ERROR") -> OK
F39: =C38*12 -> 13645 | G39: =IF(F39=D38,"OK","ERROR") -> OK
B40: Mandatory | F40: =C39*12 -> 0 | G40: =IF(F40=D39,"OK","ERROR") -> OK
B41: =Calculations!L19 -> Electric House Meter 1 | C41: =Calculations!R19 -> 16.66666667 | D41: =Calculations!Q19 -> 200 | F41: =C40*12 -> 0 | G41: =IF(F41=D40,"OK","ERROR") -> OK
B42: =Calculations!L20 -> Electric House Meter 2 | C42: =Calculations!R20 -> 21.66666667 | D42: =Calculations!Q20 -> 260 | F42: =C42*12 -> 260 | G42: =IF(F42=D42,"OK","ERROR") -> OK
B43: =Calculations!L21 -> Water and Sewer | C43: =Calculations!R21 -> 20.83333333 | D43: =Calculations!Q21 -> 250 | F43: =C43*12 -> 250 | G43: =IF(F43=D43,"OK","ERROR") -> OK
B44: =Calculations!L22 -> Mandatory, Other | C44: =Calculations!R22 -> 8.333333333 | D44: =Calculations!Q22 -> 100 | F44: =C44*12 -> 100 | G44: =IF(F44=D44,"OK","ERROR") -> OK
B45: =Calculations!L23 ->  | C45: =Calculations!R23 ->  | D45: =Calculations!Q23 -> 
B46: Sub-Total Mandatory Expenses | C46: =SUM(C41:C45) -> 67.5 | D46: =SUM(D41:D45) -> 810 | F46: =C46*12 -> 810 | G46: =IF(F46=D46,"OK","ERROR") -> OK
F47: 0 | G47: OK
F48: 0 | G48: OK
B49: Total Expenses - General Fund | C49: =SUM(C29,C38,C46,C48) -> 1253.75 | D49: =SUM(D29,D38,D46,D48) -> 15045 | F49: =C49*12 -> 15045 | G49: =IF(F49=D49,"OK","ERROR") -> OK
F50: 0 | G50: OK
B51: RESERVE FUND (Savings - Cleveland State Bank) | F51: =C51*12 -> 0 | G51: =IF(F51=D51,"OK","ERROR") -> OK
B52: Roofing Accrual | C52: =Calculations!I13 -> 632.7170652 | D52: =Calculations!H13 -> 7592.604783 | F52: 7592.604783 | G52: OK
B53: Road Maintenance Accrual | C53: =Calculations!I16 -> 178.1666667 | D53: =Calculations!H16 -> 2138 | F53: 2138 | G53: OK
B54: Painting/Power Washing Accrual | C54: =Calculations!I25 -> 97.19305556 | D54: =Calculations!H25 -> 1166.316667 | F54: 1166.316667 | G54: OK
B55: General Building Maintenance Accrual | C55: =Calculations!I33 -> 396.4208333 | D55: =Calculations!H33 -> 4757.05 | F55: 4757.05 | G55: OK
B56: Insurance Accrual | C56: =Calculations!I35 -> 483.3333333 | D56: =Calculations!H35 -> 5800 | F56: 5800 | G56: OK
B57: Legal-Professional Fees Accrual | C57: =Calculations!I38 -> 100 | D57: =Calculations!H38 -> 1200 | F57: 1200 | G57: OK
F58: 0 | G58: OK
B59: Total Reserve Fund | C59: =SUM(C52:C57) -> 1887.830954 | D59: =SUM(D52:D57) -> 22653.97145 | F59: 22653.97145 | G59: OK
F60: 0 | G60: OK
B61: Total Inflows (Income) | C61: =C18 -> 3150 | D61: =D18 -> 37800 | F61: 37800 | G61: OK
B62: Total Outflows (Expenses & Reserve Deposits) | C62: =SUM(C59,C49)*-1 -> -3141.580954 | D62: =SUM(D59,D49)*-1 -> -37698.97145 | F62: -37698.97145 | G62: OK
B63: Surplus ( From Fee Round-Up) | C63: =C61+C62 -> 8.419045888 | D63: =(D61+D62) -> 101.0285507 | F63: 101.0285507
B64: Budget Balance | C64: =C61+C62-C63 -> 0 | D64: =D61+D62-D63 -> 0 | F64: 0 | G64: =IF(F64=D64,"OK","ERROR") -> OK

Sheet Published Budget Report
B1: CONDOMINIUM OWNERS' ASSOCIATION
C2: Board Approval Date | D2: Sept 8th, 2018
B3: =CONCATENATE("Annual Operating Budget for the Year of"," ",current_budget_year) -> Annual Operating Budget for the Year of 2019
B4: Category/Account | C4: Month | D4: Year
B6: GENERAL FUND (Checking - Cleveland State Bank)
B8: Income
B9: Business Income
B10: Association Dues
B11: =CONCATENATE("Building"," ",Calculations!T7," ","(Dues per Unit @"," ","$",(Calculations!V7),")") -> Building 1270 (Dues per Unit @ $183) | C11: =Calculations!Y7 -> 1464 | D11: =Calculations!Z7 -> 17568
B12: =CONCATENATE("Building"," ",Calculations!T8," ","(Dues per Unit @"," ","$",(Calculations!V8),")") -> Building 1272 (Dues per Unit @ $232) | C12: =Calculations!Y8 -> 464 | D12: =Calculations!Z8 -> 5568
B13: =CONCATENATE("Building"," ",Calculations!T9," ","(Dues per Unit @"," ","$",(Calculations!V9),")") -> Building 1274 (Dues per Unit @ $231) | C13: =Calculations!Y9 -> 462 | D13: =Calculations!Z9 -> 5544
B14: =CONCATENATE("Building"," ",Calculations!T10," ","(Dues per Unit @"," ","$",(Calculations!V10),")") -> Building 1276 (Dues per Unit @ $203) | C14: =Calculations!Y10 -> 406 | D14: =Calculations!Z10 -> 4872
B15: =CONCATENATE("Building"," ",Calculations!T11," ","(Dues per Unit @"," ","$",(Calculations!V11),")") -> Building 1278 (Dues per Unit @ $177) | C15: =Calculations!Y11 -> 354 | D15: =Calculations!Z11 -> 4248
C16: =Calculations!Y12 ->  | D16: =Calculations!Z12 -> 
B18: Total Income | C18: =SUM(C11:C17) -> 3150 | D18: =SUM(D11:D17) -> 37800
B20: Expenses
B22: Business Expense
B23: =Calculations!L7 -> Administration Fee | C23: =Calculations!R7 -> 0.8333333333 | D23: =Calculations!Q7 -> 10
B24: =Calculations!L8 -> Dues and Subscriptions | C24: =Calculations!R8 -> 14.16666667 | D24: =Calculations!Q8 -> 170
B25: =Calculations!L9 ->  | C25: =Calculations!R9 ->  | D25: =Calculations!Q9 -> 
B26: =Calculations!L10 -> Supplies, Business | C26: =Calculations!R10 -> 25 | D26: =Calculations!Q10 -> 300
B27: =Calculations!L11 -> Bank Charge | C27: =Calculations!R11 -> 0.8333333333 | D27: =Calculations!Q11 -> 10
B28: =Calculations!L12 -> Business, Other | C28: =Calculations!R12 -> 8.333333333 | D28: =Calculations!Q12 -> 100
B29: Sub-Total Business Expenses | C29: =SUM(C23:C28) -> 49.16666667 | D29: =SUM(D23:D28) -> 590
B31: Discretionary
B32: =Calculations!L13 -> Grounds Improvement | C32: =Calculations!R13 -> 41.66666667 | D32: =Calculations!Q13 -> 500
B33: =Calculations!L14 -> Landscaping Repayment | C33: =Calculations!R14 -> 50 | D33: =Calculations!Q14 -> 600
B34: =Calculations!L15 -> Lawn Care | C34: =Calculations!R15 -> 630.8333333 | D34: =Calculations!Q15 -> 7570
B35: =Calculations!L16 -> Snow Removal | C35: =Calculations!R16 -> 393.75 | D35: =Calculations!Q16 -> 4725
B36: =Calculations!L17 -> Wireless Internet | C36: =Calculations!R17 -> 0 | D36: =Calculations!Q17 -> 0
B37: =Calculations!L18 -> Discretionary, Other | C37: =Calculations!R18 -> 20.83333333 | D37: =Calculations!Q18 -> 250
B38: Sub-Total Discretionary Expenses | C38: =SUM(C32:C37) -> 1137.083333 | D38: =SUM(D32:D37) -> 13645
B40: Mandatory
B41: =Calculations!L19 -> Electric House Meter 1 | C41: =Calculations!R19 -> 16.66666667 | D41: =Calculations!Q19 -> 200
B42: =Calculations!L20 -> Electric House Meter 2 | C42: =Calculations!R20 -> 21.66666667 | D42: =Calculations!Q20 -> 260
B43: =Calculations!L21 -> Water and Sewer | C43: =Calculations!R21 -> 20.83333333 | D43: =Calculations!Q21 -> 250
B44: =Calculations!L22 -> Mandatory, Other | C44: =Calculations!R22 -> 8.333333333 | D44: =Calculations!Q22 -> 100
B45: =Calculations!L23 ->  | C45: =Calculations!R23 ->  | D45: =Calculations!Q23 -> 
B46: Sub-Total Mandatory Expenses | C46: =SUM(C41:C45) -> 67.5 | D46: =SUM(D41:D45) -> 810
B49: Total Expenses - General Fund | C49: =SUM(C29,C38,C46,C48) -> 1253.75 | D49: =SUM(D29,D38,D46,D48) -> 15045
B51: RESERVE FUND (Savings - Cleveland State Bank)
B52: Roofing Accrual | C52: =Calculations!I13 -> 632.7170652 | D52: =Calculations!H13 -> 7592.604783
B53: Road Maintenance Accrual | C53: =Calculations!I16 -> 178.1666667 | D53: =Calculations!H16 -> 2138
B54: Painting/Power Washing Accrual | C54: =Calculations!I25 -> 97.19305556 | D54: =Calculations!H25 -> 1166.316667
B55: General Building Maintenance Accrual | C55: =Calculations!I33 -> 396.4208333 | D55: =Calculations!H33 -> 4757.05
B56: Insurance Accrual | C56: =Calculations!I35 -> 483.3333333 | D56: =Calculations!H35 -> 5800
B57: Legal-Professional Fees Accrual | C57: =Calculations!I38 -> 100 | D57: =Calculations!H38 -> 1200
B59: Total Reserve Fund | C59: =SUM(C52:C57) -> 1887.830954 | D59: =SUM(D52:D57) -> 22653.97145
B61: Total Inflows (Income) | C61: =C18 -> 3150 | D61: =D18 -> 37800
B62: Total Outflows (Expenses & Reserve Deposits) | C62: =SUM(C59,C49)*-1 -> -3141.580954 | D62: =SUM(D59,D49)*-1 -> -37698.97145
B63: Surplus ( From Fee Round-Up) | C63: =C61+C62 -> 8.419045888 | D63: =(D61+D62) -> 101.0285507
B64: Budget Balance | C64: =C61+C62-C63 -> 0 | D64: =D61+D62-D63 -> 0

Sheet Sheet1 (hidden)
D2: Roofing Estimates
D3: Kaltenbrun Quote | E3: HHCOA Budget | F3: Kaltenbrun Quote | G3: Kaltenbrun Quote
D4: 2008 | E4: 2010 | F4: 2012 | G4: 2016 | M4: 2010 Budget
D5: Timberline 40 year Shingles | F5: Timberline Lifetime Shingles | G5: Timberline Lifetime Shingles | M5: Roofing
C6: 1270 | D6: 47000 | E6: 47000 | F6: 46650 | G6: 48077 | M6: 8-Plex | N6: 47000
C7: 1272 | D7: 23300 | E7: 23000 | F7: 23325 | G7: 2400 | M7: 1272 | N7: 23000
C8: 1274 | D8: 25675 | E8: 25700 | F8: 23325 | G8: 2600 | M8: 1274 | N8: 25700
C9: 1276
C10: 1278
